Workbook

Sheet DAMAN
A1: GANPATI PETROCHEMICALS
A2: Consigment Stockist of : HALDIA PETROCHEMICALS LTD.
A3: 152,Sanjay Bldg. No. 6,Mittal Ind.Estate,Andheri Kurla Road,Marol,Andheri(East),MUMBAI-400 059.
A4: Tel. 28509801 / 28517451 / 32460637 Telefax. 28509802 / E- MAIL ganpetro@vsnl.com
A5: HDPE / PP / LLDPE PRICES EX-HALDIA PETROCHEMICALS LTD. PLANT FOR DAMAN, SILVASSA & DADRA
A6: Daman W.H. Add :- House no. DGGP / 10-B, Survey No. 747 & 748, Village Kalaria, Nani Daman, Daman - 396210, Tel:-0260-2240086, 9377319643
A7: HDPE, LLDPE & PP PRICE W.E.F. DT. 18.07.2013
A8: GRADE | B8: BASIC | C8: LESS. | D8: LESS. | E8: ADD E.D | F8: ADD CST | G8: ADD | H8: ADD S.T. | I8: CASH AMT
A9: HDPE | C9: C.D. | D9: LOC.SUB | E9: 0.1236 | F9: 0.02 | G9: TRANSP | H9: 0.0309 | I9: PMT
A10: M 6007L / M 5005L | B10: 99550 | C10: 1000 | D10: 6450 | E10: =+(B10-C10-D10)*0.1236 -> 11383.56 | F10: =+(B10-C10-D10+E10)*0.02 -> 2069.6712 | G10: 3101 | H10: =+G10*0.0309 -> 95.8209 | I10: =+B10-C10-D10+E10+F10+G10+H10 -> 108750.0521
A11: M 6007LU | B11: 101050 | C11: 1000 | D11: 6450 | E11: =+(B11-C11-D11)*0.1236 -> 11568.96 | F11: =+(B11-C11-D11+E11)*0.02 -> 2103.3792 | G11: 3101 | H11: =+G11*0.0309 -> 95.8209 | I11: =+B11-C11-D11+E11+F11+G11+H11 -> 110469.1601
A12: M 5002L | B12: 99050 | C12: 1000 | D12: 6450 | E12: 11321.76 | F12: 2058.4352 | G12: 3101 | H12: 95.8209 | I12: 108177.0161
A13: HD BM B 6401 | B13: 98500 | C13: 1000 | D13: 6500 | E13: 11247.6 | F13: 2044.952 | G13: 3101 | H13: 95.8209 | I13: 107489.3729
A14: HD BM E 5201 | B14: 100000 | C14: 1000 | D14: 6500 | E14: 11433 | F14: 2078.66 | G14: 3101 | H14: 95.8209 | I14: 109208.4809
A15: HD BM E5201S | B15: 99000 | C15: 1000 | D15: 6500 | E15: 11309.4 | F15: 2056.188 | G15: 3101 | H15: 95.8209 | I15: 108062.4089
A16: MBM B 5500 | B16: 102200 | C16: 1000 | D16: 6200 | E16: 11742 | F16: 2134.84 | G16: 3101 | H16: 95.8209 | I16: 112073.6609
A17: HM FILM F 5600/5400 | B17: 99450 | C17: 1000 | D17: 6350 | E17: 11383.56 | F17: 2069.6712 | G17: 3101 | H17: 95.8209 | I17: 108750.0521
A18: RAF/MFIL R5801 | B18: 101850 | C18: 1000 | D18: 6300 | E18: 11686.38 | F18: 2124.7276 | G18: 3101 | H18: 95.8209 | I18: 111557.9285
A19: RAF/MFIL HD T9 | B19: 98550 | C19: 1000 | D19: 6300 | E19: 11278.5 | F19: 2050.57 | G19: 3101 | H19: 95.8209 | I19: 107775.8909
A20: HD FILM HDT6 / F5001 | B20: 100350 | C20: 1000 | D20: 7350 | E20: 11371.2 | F20: 2067.424 | G20: 3101 | H20: 95.8209 | I20: 108635.4449
A21: PIPE P5200UV | B21: 103250 | C21: 1000 | D21: 6650 | E21: 11816.16 | F21: 2148.3232 | G21: 3101 | H21: 95.8209 | I21: 112761.3041
A22: IM M 5018L/M 5025L/M5818 | B22: 98400 | C22: 1000 | D22: 6750 | E22: 11204.34 | F22: 2037.0868 | G22: 3101 | H22: 95.8209 | I22: 107088.2477
A23: RAF HD T10 / HD T10S | B23: 99450 | C23: 1000 | D23: 6250 | E23: 11395.92 | F23: 2071.9184 | G23: 3101 | H23: 95.8209 | I23: 108864.6593
A24: PIPE P 5300 | B24: 104700 | C24: 1000 | D24: 6750 | E24: 11983.02 | F24: 2178.6604 | G24: 3101 | H24: 95.8209 | I24: 114308.5013
A25: PIPE P5200(P.E-63) | B25: 101750 | C25: 1000 | D25: 6650 | E25: 11630.76 | F25: 2114.6152 | G25: 3101 | H25: 95.8209 | I25: 111042.1961
A26: HD T9C | B26: 93900 | C26: 0 | D26: 2100 | E26: 11346.48 | F26: 2062.9296 | G26: 3101 | H26: 95.8209 | I26: 108406.2305
A27: OG | B27: 92900 | C27: 0 | D27: 2100 | E27: =+(B27-C27-D27)*0.1236 -> 11222.88 | F27: =+(B27-C27-D27+E27)*0.02 -> 2040.4576 | G27: 3101 | H27: =+G27*0.0309 -> 95.8209 | I27: =+B27-C27-D27+E27+F27+G27+H27 -> 107260.1585
A28: PP | F28: 0
A29: FILM F 110 | B29: 103800 | C29: 1000 | D29: 5700 | E29: =+(B29-C29-D29)*0.1236 -> 12001.56 | F29: 2182.0312 | G29: 3101 | H29: =+G29*0.0309 -> 95.8209 | I29: 114480.4121
A30: HPIM M 103 | B30: 103600 | C30: 1000 | D30: 6550 | E30: 11871.78 | F30: 2158.4356 | G30: 3101 | H30: 95.8209 | I30: 113277.0365
A31: HPIM M 110 | B31: 102250 | C31: 1000 | D31: 5650 | E31: 11816.16 | F31: 2148.3232 | G31: 3101 | H31: 95.8209 | I31: 112761.3041
A32: TF T 103 / T 105N | B32: 104350 | C32: 1000 | D32: 5350 | E32: 12112.8 | F32: 2202.256 | G32: 3101 | H32: 95.8209 | I32: 115511.8769
A33: RAFFIA R 103 | B33: 108150 | C33: 1000 | D33: 6550 | E33: 12434.16 | F33: 2260.6832 | G33: 3101 | H33: 95.8209 | I33: 118491.6641
A34: BOPP F 103 / F 103S | B34: 104550 | C34: 1000 | D34: 6050 | E34: 12051 | F34: 2191.02 | G34: 3101 | H34: 95.8209 | I34: 114938.8409
A35: PP M 108/ M106 | B35: 102150 | C35: 1000 | D35: 6050 | E35: 11754.36 | F35: 2137.0872 | G35: 3101 | H35: 95.8209 | I35: 112188.2681
A36: PP F135 / E125 | B36: 104150 | C36: 1000 | D36: 5450 | E36: 12075.72 | F36: 2195.5144 | G36: 3101 | H36: 95.8209 | I36: 115168.0553
A37: PP HP OG | B37: 97250 | C37: 0 | D37: 0 | E37: 12020.1 | F37: 2185.402 | G37: 3101 | H37: 95.8209 | I37: 114652.3229
A38: PP PS | B38: 93250 | C38: 0 | D38: 0 | E38: 11525.7 | F38: 2095.514 | G38: 3101 | H38: 95.8209 | I38: 110068.0349
A39: PP WS | B39: 91250 | C39: 0 | D39: 0 | E39: 11278.5 | F39: 2050.57 | G39: 3101 | H39: 95.8209 | I39: 107775.8909
A40: PP CP/RCP | F40: 0
A41: PPCP M 311T | B41: 109100 | C41: 1000 | D41: 6950 | E41: =+(B41-C41-D41)*0.1236 -> 12502.14 | F41: 2273.0428 | G41: 3101 | H41: =+G41*0.0309 -> 95.8209 | I41: 119122.0037
A42: PPCP M 340 / M365 | B42: 106800 | C42: 1000 | D42: 6450 | E42: 12279.66 | F42: 2232.5932 | G42: 3101 | H42: 95.8209 | I42: 117059.0741
A43: PP CP M 310 | B43: 107500 | C43: 1000 | D43: 6350 | E43: 12378.54 | F43: 2250.5708 | G43: 3101 | H43: 95.8209 | I43: 117975.9317
A44: PP CP M 312 | B44: 105600 | C44: 1000 | D44: 6800 | E44: 12088.08 | F44: 2197.7616 | G44: 3101 | H44: 95.8209 | I44: 115282.6625
A45: PP CP M 304 / M 325 | B45: 105550 | C45: 1000 | D45: 6700 | E45: 12094.26 | F45: 2198.8852 | G45: 3101 | H45: 95.8209 | I45: 115339.9661
A46: PP CP M 307 / M 315 | B46: 105050 | C46: 1000 | D46: 6700 | E46: 12032.46 | F46: 2187.6492 | G46: 3101 | H46: 95.8209 | I46: 114766.9301
A47: PP RCP B 200 | B47: 105900 | C47: 1000 | D47: 5750 | E47: 12254.94 | F47: 2228.0988 | G47: 3101 | H47: 95.8209 | I47: 116829.8597
A48: PP RCP B202S | B48: 108900 | C48: 1000 | D48: 5750 | E48: 12625.74 | F48: 2295.5148 | G48: 3101 | H48: 95.8209 | I48: 120268.0757
A49: PP RCP M212S | B49: 107100 | C49: 1000 | D49: 6750 | E49: 12279.66 | F49: 2232.5932 | G49: 3101 | H49: 95.8209 | I49: 117059.0741
A50: LLDPE | F50: 0
A51: FILM 71601D | B51: 104450 | C51: 1000 | D51: 7250 | E51: =+(B51-C51-D51)*0.1236 -> 11890.32 | F51: 2161.8064 | G51: 3101 | H51: =+G51*0.0309 -> 95.8209 | I51: 113448.9473
A52: FILM 71501S,71601W | B52: 103900 | C52: 1000 | D52: 7700 | E52: 11766.72 | F52: 2139.3344 | G52: 3101 | H52: 95.8209 | I52: 112302.8753
A53: FILM 71602 S / W | B53: 103900 | C53: 1000 | D53: 7700 | E53: 11766.72 | F53: 2139.3344 | G53: 3101 | H53: 95.8209 | I53: 112302.8753
A54: ROTO 73005 T/73204 T | B54: 103750 | C54: 1000 | D54: 6100 | E54: 11945.94 | F54: 2171.9188 | G54: 3101 | H54: 95.8209 | I54: 113964.6797
A55: ROTO 73005 TU | B55: 105250 | C55: 1000 | D55: 6100 | E55: 12131.34 | F55: 2205.6268 | G55: 3101 | H55: 95.8209 | I55: 115683.7877
A56: EC 72307 E | B56: 105950 | C56: 1000 | D56: 7000 | E56: 12106.62 | F56: 2201.1324 | G56: 3101 | H56: 95.8209 | I56: 115454.5733
A57: LLT - 12 | B57: 105450 | C57: 1000 | D57: 7000 | E57: =+(B57-C57-D57)*0.1236 -> 12044.82 | F57: 2189.8964 | G57: 3101 | H57: =+G57*0.0309 -> 95.8209 | I57: 114881.5373
A58: OG | B58: 99400 | C58: 0 | D58: 2250 | E58: 12007.74 | F58: 2183.1548 | G58: 3101 | H58: 95.8209 | I58: 114537.7157
A59: POST SALES QUANTITY DISCOUNT AS APPLICABLE
A60: QTY. MT FOR HD / LL | B60: >= 10 | C60: >=15 | D60: >=30 | E60: >=60 | F60: >= 100 | G60: >= 200 | H60: >= 400
A61: HDPE/LLDPE | B61: 300/- | C61: 300/- | D61: 400/- | E61: 450/- | F61: 550/- | G61: 650/- | H61: 750/-
A62: QTY. MT FOR PP | B62: >=15 | C62: >=30 | D62: >=60 | E62: >=100 | F62: >=200 | G62: >=400
A63: PP | B63: 300/- | C63: 400/- | D63: 450/- | E63: 550/- | F63: 650/- | G63: 750/-
A64: · FOR CREDIT PURCHASE INTREST FREE CREDIT WILL BE 14 DAYS FROM THE DATE OF INVOICE. AN EPI
A65: RS. 70 / MT PER DAY FOR EX-PLANT
A66: · Trade Discount of Rs. 4000 PMT applicable on R103 - to be adjusted pre-exice basis on Ex-plant sales only.
A67: · Trade Discount of Rs. 3000 PMT applicable on R5801 - to be adjusted pre-exice basis on Ex-plant sales only.
A68: · Trade Discount of Rs. 2000 PMT applicable on B5500 - to be adjusted pre-exice basis on Ex-plant sales only.
A69: · NON PRIME GRADE RS.800/MT LESS THAN THE BASIC PRIME GRADE.
A70: · CHEQUE RETURN PENALTY RS.1000/-PER INSTRUMENT.
A71: · UNLOADING & VARAI CHARGES TO BE BORNE BY THE CUSTOMER.
A72: · “C” FORM REQUIRED IN ADVANCE.
A73: · QUANTITY DISCOUNT WOULD NOT BE APPLICABLE ON COMBINATION OF HDPE AND LLDPE GRADES.
A74: · PRICE MAY CHANGE WITHOUT ANY PRIOR NOTICE. PRICE PREVAILING AT THE TIME OF DISPATCH WILL APPLY.
A75: REGARDS
A76: HITESH SHAH - 9820106078
A77: GIRISH SHAH - 9320949656

Sheet GUJARAT (E)
A1: GANPATI PETROCHEMICALS
A2: Consigment Stockist of : HALDIA PETROCHEMICALS LTD.
A3: 152,Sanjay Bldg. No. 6,Mittal Ind.Estate,Andheri Kurla Road,Marol,Andheri(East),MUMBAI-400 059.
A4: Tel. 28509801 / 28517451 / 32460637 Telefax. 28509802 / E- MAIL ganpetro@vsnl.com
A5: HDPE / PP / LLDPE PRICES EX-HALDIA PETROCHEMICALS LTD. PLANT FOR GUJARAT(E)
A6: Daman W.H. Add :- House no. DGGP / 10-B, Survey No. 747 & 748, Village Kalaria, Nani Daman, Daman - 396210, Tel:-0260-2240086, 9377319643
A7: HDPE, LLDPE & PP PRICE W.E.F. DT. 18.07.2013
A8: GRADE | B8: BASIC | C8: LESS. | D8: LESS. | E8: ADD | F8: ADD CST | G8: CASH AMT
A9: HDPE | C9: C.D. | D9: LOC.SUB | E9: 0.1236 | F9: 0.02 | G9: PMT
A10: M 6007L / M 5005L | B10: 99550 | C10: 1000 | D10: 5950 | E10: =+(B10-C10-D10)*0.1236 -> 11445.36 | F10: =+(B10-C10-D10+E10)*0.02 -> 2080.9072 | G10: =+B10-C10-D10+E10+F10 -> 106126.2672 | I10: TRANS.CHARGES PMT.
A11: M 6007LU | B11: 101050 | C11: 1000 | D11: 5950 | E11: =+(B11-C11-D11)*0.1236 -> 11630.76 | F11: =+(B11-C11-D11+E11)*0.02 -> 2114.6152 | G11: =+B11-C11-D11+E11+F11 -> 107845.3752
A12: M 5002L | B12: 99050 | C12: 1000 | D12: 5950 | E12: 11383.56 | F12: 2069.6712 | G12: 105553.2312
A13: HD BM B 6401 | B13: 98500 | C13: 1000 | D13: 6000 | E13: 11309.4 | F13: 2056.188 | G13: 104865.588 | H13: LOCATIONS | I13: FREIGHT | J13: ADD S.T.
A14: HD BM E 5201 | B14: 100000 | C14: 1000 | D14: 6000 | E14: 11494.8 | F14: 2089.896 | G14: 106584.696 | H14: **T.D. | I14: RS/MT. | J14: 0.0309
A15: HD BM E5201S | B15: 99000 | C15: 1000 | D15: 6000 | E15: 11371.2 | F15: 2067.424 | G15: 105438.624
A16: MBM B 5500 | B16: 102200 | C16: 1000 | D16: 5700 | E16: 11803.8 | F16: 2146.076 | G16: 109449.876
A17: HM FILM F 5600/5400 | B17: 99450 | C17: 1000 | D17: 5550 | E17: 11482.44 | F17: 2087.6488 | G17: 106470.0888 | H17: AHMD. - 5 | I17: 3288 | J17: =+I17*0.0309 -> 101.5992
A18: RAF/MFIL R5801 | B18: 101850 | C18: 1000 | D18: 5800 | E18: 11748.18 | F18: 2135.9636 | G18: 108934.1436 | H18: HALOL - 5 | I18: 3334 | J18: =+I18*0.0309 -> 103.0206
A19: RAF/MFIL HD T9 | B19: 98550 | C19: 1000 | D19: 5800 | E19: 11340.3 | F19: 2061.806 | G19: 105152.106 | H19: BARODA - 5 | I19: 3282 | J19: =+I19*0.0309 -> 101.4138
A20: HD FILM HDT6 / F5001 | B20: 100350 | C20: 1000 | D20: 6550 | E20: 11470.08 | F20: 2085.4016 | G20: 106355.4816 | H20: KALOL-M- 5 | I20: 3380 | J20: =+I20*0.0309 -> 104.442
A21: PIPE P5200UV | B21: 103250 | C21: 1000 | D21: 6150 | E21: 11877.96 | F21: 2159.5592 | G21: 110137.5192
A22: IM M 5018L/M 5025L/M5818 | B22: 98400 | C22: 1000 | D22: 5600 | E22: 11346.48 | F22: 2062.9296 | G22: 105209.4096 | H22: VATVA-5 | I22: 3288 | J22: =+I22*0.0309 -> 101.5992
A23: RAF HD T10 / HD T10S | B23: 99450 | C23: 1000 | D23: 5700 | E23: 11463.9 | F23: 2084.278 | G23: 106298.178 | H23: BHARUCH | I23: 3064 | J23: =+I23*0.0309 -> 94.6776
A24: PIPE P 5300 | B24: 104700 | C24: 1000 | D24: 6300 | E24: 12038.64 | F24: 2188.7728 | G24: 111627.4128 | H24: ANAND | I24: 3235 | J24: =+I24*0.0309 -> 99.9615
A25: PIPE P5200(P.E-63) | B25: 101750 | C25: 1000 | D25: 6150 | E25: 11692.56 | F25: 2125.8512 | G25: 108418.4112
A26: HD T9C | B26: 93900 | C26: 0 | D26: 2100 | E26: 11346.48 | F26: 2062.9296 | G26: 105209.4096
A27: OG | B27: 92900 | C27: 0 | D27: 2100 | E27: 11222.88 | F27: 2040.4576 | G27: 104063.3376 | L27: `
A28: PP
A29: FILM F 110 | B29: 103800 | C29: 1000 | D29: 5500 | E29: =+(B29-C29-D29)*0.1236 -> 12026.28 | F29: 2186.5256 | G29: =+B29-C29-D29+E29+F29 -> 111512.8056 | H29: *T.D.=TRANSIT DAYS
A30: HPIM M 103 | B30: 103600 | C30: 1000 | D30: 6700 | E30: 11853.24 | F30: 2155.0648 | G30: 109908.3048
A31: HPIM M 110 | B31: 102250 | C31: 1000 | D31: 5700 | E31: 11809.98 | F31: 2147.1996 | G31: 109507.1796
A32: TF T 103 / T 105N | B32: 104350 | C32: 1000 | D32: 4750 | E32: 12186.96 | F32: 2215.7392 | G32: 113002.6992
A33: RAFFIA R 103 | B33: 108150 | C33: 1000 | D33: 6700 | E33: 12415.62 | F33: 2257.3124 | G33: 115122.9324
A34: BOPP F 103 / F 103S | B34: 104550 | C34: 1000 | D34: 5000 | E34: 12180.78 | F34: 2214.6156 | G34: 112945.3956
A35: PP M 108/ M106 | B35: 102150 | C35: 1000 | D35: 6100 | E35: 11748.18 | F35: 2135.9636 | G35: 108934.1436
A36: PP F135 / E125 | B36: 104150 | C36: 1000 | D36: 4950 | E36: 12137.52 | F36: 2206.7504 | G36: 112544.2704
A37: PP HP OG | B37: 97250 | C37: 0 | D37: 0 | E37: 12020.1 | F37: 2185.402 | G37: 111455.502
A38: PP PS | B38: 93250 | C38: 0 | D38: 0 | E38: 11525.7 | F38: 2095.514 | G38: 106871.214
A39: PP WS | B39: 91250 | C39: 0 | D39: 0 | E39: 11278.5 | F39: 2050.57 | G39: 104579.07
A40: PP CP/RCP | E40: =(B40-C40-D40)*16% -> 0 | G40: =(B40-C40-D40)*16%+(B40-C40-D40) -> 0
A41: PPCP M 311T | B41: 109100 | C41: 1000 | D41: 6200 | E41: =+(B41-C41-D41)*0.1236 -> 12594.84 | F41: 2289.8968 | G41: =+B41-C41-D41+E41+F41 -> 116784.7368
A42: PPCP M 340 / M365 | B42: 106800 | C42: 1000 | D42: 5700 | E42: 12372.36 | F42: 2249.4472 | G42: 114721.8072
A43: PP CP M 310 | B43: 107500 | C43: 1000 | D43: 5650 | E43: 12465.06 | F43: 2266.3012 | G43: 115581.3612
A44: PP CP M 312 | B44: 105600 | C44: 1000 | D44: 5850 | E44: 12205.5 | F44: 2219.11 | G44: 113174.61
A45: PP CP M 304 / M 325 | B45: 105550 | C45: 1000 | D45: 6000 | E45: 12180.78 | F45: 2214.6156 | G45: 112945.3956
A46: PP CP M 307 / M 315 | B46: 105050 | C46: 1000 | D46: 6000 | E46: 12118.98 | F46: 2203.3796 | G46: 112372.3596
A47: PP RCP B 200 | B47: 105900 | C47: 1000 | D47: 5300 | E47: 12310.56 | F47: 2238.2112 | G47: 114148.7712
A48: PP RCP B202S | B48: 108900 | C48: 1000 | D48: 5000 | E48: 12718.44 | F48: 2312.3688 | G48: 117930.8088
A49: PP RCP M212S | B49: 107100 | C49: 1000 | D49: 6000 | E49: 12372.36 | F49: 2249.4472 | G49: 114721.8072
A50: LLDPE
A51: FILM 71601D | B51: 104450 | C51: 1000 | D51: 6550 | E51: =+(B51-C51-D51)*0.1236 -> 11976.84 | F51: 2177.5368 | G51: =+B51-C51-D51+E51+F51 -> 111054.3768
A52: FILM 71501S,71601W | B52: 103900 | C52: 1000 | D52: 7000 | E52: 11853.24 | F52: 2155.0648 | G52: 109908.3048
A53: FILM 71602 S / W | B53: 103900 | C53: 1000 | D53: 7000 | E53: 11853.24 | F53: 2155.0648 | G53: 109908.3048
A54: ROTO 73005 T/73204 T | B54: 103750 | C54: 1000 | D54: 5550 | E54: 12013.92 | F54: 2184.2784 | G54: 111398.1984
A55: ROTO 73005 TU | B55: 105250 | C55: 1000 | D55: 5550 | E55: 12199.32 | F55: 2217.9864 | G55: 113117.3064
A56: EC 72307 E | B56: 105950 | C56: 1000 | D56: 6450 | E56: 12174.6 | F56: 2213.492 | G56: 112888.092
A57: LLT - 12 | B57: 105450 | C57: 1000 | D57: 6450 | E57: =+(B57-C57-D57)*0.1236 -> 12112.8 | F57: 2202.256 | G57: 112315.056
A58: OG | B58: 99400 | C58: 0 | D58: 2250 | E58: 12007.74 | F58: 2183.1548 | G58: 111340.8948
A59: POST SALES QUANTITY DISCOUNT AS APPLICABLE
A60: QTY. MT FOR HD / LL | B60: >= 10 | C60: >=15 | D60: >=30 | E60: >=60 | F60: >= 100 | G60: >= 200 | H60: >= 400
A61: HDPE/LLDPE | B61: 300/- | C61: 300/- | D61: 400/- | E61: 450/- | F61: 550/- | G61: 650/- | H61: 750/-
A62: QTY. MT FOR PP | B62: >=15 | C62: >=30 | D62: >=60 | E62: >=100 | F62: >=200 | G62: >=400
A63: PP | B63: 300/- | C63: 400/- | D63: 450/- | E63: 550/- | F63: 650/- | G63: 750/-
A64: · FOR CREDIT PURCHASE INTREST FREE CREDIT WILL BE 14 DAYS FROM THE DATE OF INVOICE. AN EPI
A65: RS. 70 / MT PER DAY FOR EX-PLANT
A66: · Trade Discount of Rs. 4000 PMT applicable on R103 - to be adjusted pre-exice basis on Ex-plant sales only.
A67: · Trade Discount of Rs. 3000 PMT applicable on R5801 - to be adjusted pre-exice basis on Ex-plant sales only.
A68: · Trade Discount of Rs. 2000 PMT applicable on B5500 - to be adjusted pre-exice basis on Ex-plant sales only.
A69: · NON PRIME GRADE RS.800/MT LESS THAN THE BASIC PRIME GRADE.
A70: · CHEQUE RETURN PENALTY RS.1000/-PER INSTRUMENT.
A71: · UNLOADING & VARAI CHARGES TO BE BORNE BY THE CUSTOMER.
A72: · “C” FORM REQUIRED IN ADVANCE.
A73: · QUANTITY DISCOUNT WOULD NOT BE APPLICABLE ON COMBINATION OF HDPE AND LLDPE GRADES.
A74: · PRICE MAY CHANGE WITHOUT ANY PRIOR NOTICE. PRICE PREVAILING AT THE TIME OF DISPATCH WILL APPLY.
A75: REGARDS
A76: HITESH SHAH - 9820106078
A77: GIRISH SHAH - 9320949656

Sheet GUJARAT (S)
A1: GANPATI PETROCHEMICALS
A2: Consigment Stockist of : HALDIA PETROCHEMICALS LTD.
A3: 152,Sanjay Bldg. No. 6,Mittal Ind.Estate,Andheri Kurla Road,Marol,Andheri(East),MUMBAI-400 059.
A4: Tel. 28509801 / 28517451 / 32460637 Telefax. 28509802 / E- MAIL ganpetro@vsnl.com
A5: HDPE / PP / LLDPE PRICES EX-HALDIA PETROCHEMICALS LTD. PLANT FOR GUJARAT(SOUTH)
A6: Daman W.H. Add :- House no. DGGP / 10-B, Survey No. 747 & 748, Village Kalaria, Nani Daman, Daman - 396210, Tel:-0260-2240086, 9377319643
A7: HDPE, LLDPE & PP PRICE W.E.F. DT. 18.07.2013
A8: GRADE | B8: BASIC | C8: LESS. | D8: LESS. | E8: ADD | F8: ADD CST | G8: CASH AMT
A9: HDPE | C9: C.D. | D9: LOC.SUB | E9: 0.1236 | F9: 0.02 | G9: PMT
A10: M 6007L / M 5005L | B10: 99550 | C10: 1000 | D10: 6300 | E10: =+(B10-C10-D10)*0.1236 -> 11402.1 | F10: =+(B10-C10-D10+E10)*0.02 -> 2073.042 | G10: =+B10-C10-D10+E10+F10 -> 105725.142 | I10: TRANS.CHARGES PMT.
A11: M 6007LU | B11: 101050 | C11: 1000 | D11: 6300 | E11: =+(B11-C11-D11)*0.1236 -> 11587.5 | F11: =+(B11-C11-D11+E11)*0.02 -> 2106.75 | G11: =+B11-C11-D11+E11+F11 -> 107444.25
A12: M 5002L | B12: 99050 | C12: 1000 | D12: 6300 | E12: 11340.3 | F12: 2061.806 | G12: 105152.106
A13: HD BM B 6401 | B13: 98500 | C13: 1000 | D13: 6550 | E13: 11241.42 | F13: 2043.8284 | G13: 104235.2484 | H13: LOCATIONS | I13: FREIGHT | J13: ADD S.T.
A14: HD BM E 5201 | B14: 100000 | C14: 1000 | D14: 6550 | E14: 11426.82 | F14: 2077.5364 | G14: 105954.3564 | H14: **T.D. | I14: RS/MT. | J14: 0.0309
A15: HD BM E5201S | B15: 99000 | C15: 1000 | D15: 6550 | E15: 11303.22 | F15: 2055.0644 | G15: 104808.2844
A16: MBM B 5500 | B16: 102200 | C16: 1000 | D16: 6200 | E16: 11742 | F16: 2134.84 | G16: 108876.84
A17: HM FILM F 5600/5400 | B17: 99450 | C17: 1000 | D17: 5900 | E17: 11439.18 | F17: 2079.7836 | G17: 106068.9636 | H17: VAPI - 5 | I17: 3102 | J17: =+I17*0.0309 -> 95.8518
A18: RAF/MFIL R5801 | B18: 101850 | C18: 1000 | D18: 6350 | E18: 11680.2 | F18: 2123.604 | G18: 108303.804 | H18: SURAT - 5 | I18: 3076 | J18: =+I18*0.0309 -> 95.0484
A19: RAF/MFIL HD T9 | B19: 98550 | C19: 1000 | D19: 6350 | E19: 11272.32 | F19: 2049.4464 | G19: 104521.7664 | H19: UMERGAON - 5 | I19: 3082 | J19: =+I19*0.0309 -> 95.2338
A20: HD FILM HDT6 / F5001 | B20: 100350 | C20: 1000 | D20: 7100 | E20: 11402.1 | F20: 2073.042 | G20: 105725.142 | H20: VALSAD - 5 | I20: 3100 | J20: =+I20*0.0309 -> 95.79
A21: PIPE P5200UV | B21: 103250 | C21: 1000 | D21: 6500 | E21: 11834.7 | F21: 2151.694 | G21: 109736.394
A22: IM M 5018L/M 5025L/M5818 | B22: 98400 | C22: 1000 | D22: 6000 | E22: 11297.04 | F22: 2053.9408 | G22: 104750.9808
A23: RAF HD T10 / HD T10S | B23: 99450 | C23: 1000 | D23: 6100 | E23: 11414.46 | F23: 2075.2892 | G23: 105839.7492
A24: PIPE P 5300 | B24: 104700 | C24: 1000 | D24: 6800 | E24: 11976.84 | F24: 2177.5368 | G24: 111054.3768
A25: PIPE P5200(P.E-63) | B25: 101750 | C25: 1000 | D25: 6500 | E25: 11649.3 | F25: 2117.986 | G25: 108017.286
A26: HD T9C | B26: 93900 | C26: 0 | D26: 2100 | E26: 11346.48 | F26: 2062.9296 | G26: 105209.4096
A27: OG | B27: 92900 | C27: 0 | D27: 2100 | E27: 11222.88 | F27: 2040.4576 | G27: 104063.3376
A28: PP
A29: FILM F 110 | B29: 103800 | C29: 1000 | D29: 5500 | E29: =+(B29-C29-D29)*0.1236 -> 12026.28 | F29: 2186.5256 | G29: =+B29-C29-D29+E29+F29 -> 111512.8056 | H29: *T.D.=TRANSIT DAYS
A30: HPIM M 103 | B30: 103600 | C30: 1000 | D30: 6700 | E30: 11853.24 | F30: 2155.0648 | G30: 109908.3048
A31: HPIM M 110 | B31: 102250 | C31: 1000 | D31: 5700 | E31: 11809.98 | F31: 2147.1996 | G31: 109507.1796
A32: TF T 103 / T 105N | B32: 104350 | C32: 1000 | D32: 4750 | E32: 12186.96 | F32: 2215.7392 | G32: 113002.6992
A33: RAFFIA R 103 | B33: 108150 | C33: 1000 | D33: 6700 | E33: 12415.62 | F33: 2257.3124 | G33: 115122.9324
A34: BOPP F 103 / F 103S | B34: 104550 | C34: 1000 | D34: 5000 | E34: 12180.78 | F34: 2214.6156 | G34: 112945.3956
A35: PP M 108/ M106 | B35: 102150 | C35: 1000 | D35: 6100 | E35: 11748.18 | F35: 2135.9636 | G35: 108934.1436
A36: PP F135 / E125 | B36: 104150 | C36: 1000 | D36: 4950 | E36: 12137.52 | F36: 2206.7504 | G36: 112544.2704
A37: PP HP OG | B37: 97250 | C37: 0 | D37: 0 | E37: 12020.1 | F37: 2185.402 | G37: 111455.502
A38: PP PS | B38: 93250 | C38: 0 | D38: 0 | E38: 11525.7 | F38: 2095.514 | G38: 106871.214
A39: PP WS | B39: 91250 | C39: 0 | D39: 0 | E39: 11278.5 | F39: 2050.57 | G39: 104579.07
A40: PP CP/RCP | E40: =(B40-C40-D40)*16% -> 0 | G40: =(B40-C40-D40)*16%+(B40-C40-D40) -> 0
A41: PPCP M 311T | B41: 109100 | C41: 1000 | D41: 6200 | E41: =+(B41-C41-D41)*0.1236 -> 12594.84 | F41: 2289.8968 | G41: =+B41-C41-D41+E41+F41 -> 116784.7368
A42: PPCP M 340 / M365 | B42: 106800 | C42: 1000 | D42: 5700 | E42: 12372.36 | F42: 2249.4472 | G42: 114721.8072
A43: PP CP M 310 | B43: 107500 | C43: 1000 | D43: 5650 | E43: 12465.06 | F43: 2266.3012 | G43: 115581.3612
A44: PP CP M 312 | B44: 105600 | C44: 1000 | D44: 5850 | E44: 12205.5 | F44: 2219.11 | G44: 113174.61
A45: PP CP M 304 / M 325 | B45: 105550 | C45: 1000 | D45: 6000 | E45: 12180.78 | F45: 2214.6156 | G45: 112945.3956
A46: PP CP M 307 / M 315 | B46: 105050 | C46: 1000 | D46: 6000 | E46: 12118.98 | F46: 2203.3796 | G46: 112372.3596
A47: PP RCP B 200 | B47: 105900 | C47: 1000 | D47: 5300 | E47: 12310.56 | F47: 2238.2112 | G47: 114148.7712
A48: PP RCP B202S | B48: 108900 | C48: 1000 | D48: 5000 | E48: 12718.44 | F48: 2312.3688 | G48: 117930.8088
A49: PP RCP M212S | B49: 107100 | C49: 1000 | D49: 6000 | E49: 12372.36 | F49: 2249.4472 | G49: 114721.8072
A50: LLDPE
A51: FILM 71601D | B51: 104450 | C51: 1000 | D51: 7000 | E51: =+(B51-C51-D51)*0.1236 -> 11921.22 | F51: 2167.4244 | G51: =+B51-C51-D51+E51+F51 -> 110538.6444
A52: FILM 71501S,71601W | B52: 103900 | C52: 1000 | D52: 7450 | E52: 11797.62 | F52: 2144.9524 | G52: 109392.5724
A53: FILM 71602 S / W | B53: 103900 | C53: 1000 | D53: 7450 | E53: 11797.62 | F53: 2144.9524 | G53: 109392.5724
A54: ROTO 73005 T/73204 T | B54: 103750 | C54: 1000 | D54: 5900 | E54: 11970.66 | F54: 2176.4132 | G54: 110997.0732
A55: ROTO 73005 TU | B55: 105250 | C55: 1000 | D55: 5900 | E55: 12156.06 | F55: 2210.1212 | G55: 112716.1812
A56: EC 72307 E | B56: 105950 | C56: 1000 | D56: 6800 | E56: 12131.34 | F56: 2205.6268 | G56: 112486.9668
A57: LLT - 12 | B57: 105450 | C57: 1000 | D57: 6800 | E57: =+(B57-C57-D57)*0.1236 -> 12069.54 | F57: 2194.3908 | G57: 111913.9308
A58: OG | B58: 99400 | C58: 0 | D58: 2250 | E58: 12007.74 | F58: 2183.1548 | G58: 111340.8948
A59: POST SALES QUANTITY DISCOUNT AS APPLICABLE
A60: QTY. MT FOR HD / LL | B60: >= 10 | C60: >=15 | D60: >=30 | E60: >=60 | F60: >= 100 | G60: >= 200 | H60: >= 400
A61: HDPE/LLDPE | B61: 300/- | C61: 300/- | D61: 400/- | E61: 450/- | F61: 550/- | G61: 650/- | H61: 750/-
A62: QTY. MT FOR PP | B62: >=15 | C62: >=30 | D62: >=60 | E62: >=100 | F62: >=200 | G62: >=400
A63: PP | B63: 300/- | C63: 400/- | D63: 450/- | E63: 550/- | F63: 650/- | G63: 750/-
A64: · FOR CREDIT PURCHASE INTREST FREE CREDIT WILL BE 14 DAYS FROM THE DATE OF INVOICE. AN EPI
A65: RS. 70 / MT PER DAY FOR EX-PLANT
A66: · Trade Discount of Rs. 4000 PMT applicable on R103 - to be adjusted pre-exice basis on Ex-plant sales only.
A67: · Trade Discount of Rs. 3000 PMT applicable on R5801 - to be adjusted pre-exice basis on Ex-plant sales only.
A68: · Trade Discount of Rs. 2000 PMT applicable on B5500 - to be adjusted pre-exice basis on Ex-plant sales only.
A69: · NON PRIME GRADE RS.800/MT LESS THAN THE BASIC PRIME GRADE.
A70: · CHEQUE RETURN PENALTY RS.1000/-PER INSTRUMENT.
A71: · UNLOADING & VARAI CHARGES TO BE BORNE BY THE CUSTOMER.
A72: · “C” FORM REQUIRED IN ADVANCE.
A73: · QUANTITY DISCOUNT WOULD NOT BE APPLICABLE ON COMBINATION OF HDPE AND LLDPE GRADES.
A74: · PRICE MAY CHANGE WITHOUT ANY PRIOR NOTICE. PRICE PREVAILING AT THE TIME OF DISPATCH WILL APPLY.
A75: REGARDS
A76: HITESH SHAH - 9820106078
A77: GIRISH SHAH - 9320949656

Sheet GUJARAT (W)
A1: GANPATI PETROCHEMICALS
A2: Consigment Stockist of : HALDIA PETROCHEMICALS LTD.
A3: 152,Sanjay Bldg. No. 6,Mittal Ind.Estate,Andheri Kurla Road,Marol,Andheri(East),MUMBAI-400 059.
A4: Tel. 28509801 / 28517451 / 32460637 Telefax. 28509802 / E- MAIL ganpetro@vsnl.com
A5: HDPE / PP / LLDPE PRICES EX-HALDIA PETROCHEMICALS LTD. PLANT FOR GUJARAT(WEST)
A6: Daman W.H. Add :- House no. DGGP / 10-B, Survey No. 747 & 748, Village Kalaria, Nani Daman, Daman - 396210, Tel:-0260-2240086, 9377319643
A7: HDPE, LLDPE & PP PRICE W.E.F. DT. 18.07.2013
A8: GRADE | B8: BASIC | C8: LESS. | D8: LESS. | E8: ADD | F8: ADD CST | G8: CASH AMT
A9: HDPE | C9: C.D. | D9: LOC.SUB | E9: 0.1236 | F9: 0.02 | G9: PMT
A10: M 6007L / M 5005L | B10: 99550 | C10: 1000 | D10: 6250 | E10: =+(B10-C10-D10)*0.1236 -> 11408.28 | F10: =+(B10-C10-D10+E10)*0.02 -> 2074.1656 | G10: =+B10-C10-D10+E10+F10 -> 105782.4456 | I10: TRANS.CHARGES PMT.
A11: M 6007LU | B11: 101050 | C11: 1000 | D11: 6250 | E11: =+(B11-C11-D11)*0.1236 -> 11593.68 | F11: =+(B11-C11-D11+E11)*0.02 -> 2107.8736 | G11: =+B11-C11-D11+E11+F11 -> 107501.5536
A12: M 5002L | B12: 99050 | C12: 1000 | D12: 6250 | E12: 11346.48 | F12: 2062.9296 | G12: 105209.4096
A13: HD BM B 6401 | B13: 98500 | C13: 1000 | D13: 6100 | E13: 11297.04 | F13: 2053.9408 | G13: 104750.9808 | H13: LOCATIONS | I13: FREIGHT | J13: ADD S.T.
A14: HD BM E 5201 | B14: 100000 | C14: 1000 | D14: 6100 | E14: 11482.44 | F14: 2087.6488 | G14: 106470.0888 | H14: **T.D. | I14: RS/MT. | J14: 0.0309
A15: HD BM E5201S | B15: 99000 | C15: 1000 | D15: 6100 | E15: 11358.84 | F15: 2065.1768 | G15: 105324.0168
A16: MBM B 5500 | B16: 102200 | C16: 1000 | D16: 6000 | E16: 11766.72 | F16: 2139.3344 | G16: 109106.0544
A17: HM FILM F 5600/5400 | B17: 99450 | C17: 1000 | D17: 5600 | E17: 11476.26 | F17: 2086.5252 | G17: 106412.7852 | H17: RAJKOT - 6 | I17: 3739 | J17: =+I17*0.0309 -> 115.5351
A18: RAF/MFIL R5801 | B18: 101850 | C18: 1000 | D18: 6050 | E18: 11717.28 | F18: 2130.3456 | G18: 108647.6256 | H18: BHAVNAGAR-6 | I18: 3839 | J18: =+I18*0.0309 -> 118.6251
A19: RAF/MFIL HD T9 | B19: 98550 | C19: 1000 | D19: 6050 | E19: 11309.4 | F19: 2056.188 | G19: 104865.588
A20: HD FILM HDT6 / F5001 | B20: 100350 | C20: 1000 | D20: 6650 | E20: 11457.72 | F20: 2083.1544 | G20: 106240.8744
A21: PIPE P5200UV | B21: 103250 | C21: 1000 | D21: 6450 | E21: 11840.88 | F21: 2152.8176 | G21: 109793.6976
A22: IM M 5018L/M 5025L/M5818 | B22: 98400 | C22: 1000 | D22: 5850 | E22: 11315.58 | F22: 2057.3116 | G22: 104922.8916
A23: RAF HD T10 / HD T10S | B23: 99450 | C23: 1000 | D23: 5950 | E23: 11433 | F23: 2078.66 | G23: 106011.66
A24: PIPE P 5300 | B24: 104700 | C24: 1000 | D24: 6550 | E24: 12007.74 | F24: 2183.1548 | G24: 111340.8948
A25: PIPE P5200(P.E-63) | B25: 101750 | C25: 1000 | D25: 6450 | E25: 11655.48 | F25: 2119.1096 | G25: 108074.5896
A26: HD T9C | B26: 93900 | C26: 0 | D26: 2100 | E26: 11346.48 | F26: 2062.9296 | G26: 105209.4096
A27: OG | B27: 92900 | C27: 0 | D27: 2100 | E27: 11222.88 | F27: 2040.4576 | G27: 104063.3376
A28: PP
A29: FILM F 110 | B29: 103800 | C29: 1000 | D29: 5500 | E29: =+(B29-C29-D29)*0.1236 -> 12026.28 | F29: =+(B29-C29-D29+E29)*0.02 -> 2186.5256 | G29: =+B29-C29-D29+E29+F29 -> 111512.8056 | H29: *T.D.=TRANSIT DAYS
A30: HPIM M 103 | B30: 103600 | C30: 1000 | D30: 6700 | E30: 11853.24 | F30: 2155.0648 | G30: 109908.3048
A31: HPIM M 110 | B31: 102250 | C31: 1000 | D31: 6500 | E31: 11711.1 | F31: 2129.222 | G31: 108590.322
A32: TF T 103 / T 105N | B32: 104350 | C32: 1000 | D32: 4750 | E32: 12186.96 | F32: 2215.7392 | G32: 113002.6992
A33: RAFFIA R 103 | B33: 108150 | C33: 1000 | D33: 6700 | E33: 12415.62 | F33: 2257.3124 | G33: 115122.9324
A34: BOPP F 103 / F 103S | B34: 104550 | C34: 1000 | D34: 5000 | E34: 12180.78 | F34: 2214.6156 | G34: 112945.3956
A35: PP M 108/ M106 | B35: 102150 | C35: 1000 | D35: 6900 | E35: 11649.3 | F35: 2117.986 | G35: 108017.286
A36: PP F135 / E125 | B36: 104150 | C36: 1000 | D36: 4950 | E36: 12137.52 | F36: 2206.7504 | G36: 112544.2704
A37: PP HP OG | B37: 97250 | C37: 0 | D37: 0 | E37: 12020.1 | F37: 2185.402 | G37: 111455.502
A38: PP PS | B38: 93250 | C38: 0 | D38: 0 | E38: 11525.7 | F38: 2095.514 | G38: 106871.214
A39: PP WS | B39: 91250 | C39: 0 | D39: 0 | E39: 11278.5 | F39: 2050.57 | G39: 104579.07
A40: PP CP/RCP | E40: =(B40-C40-D40)*16% -> 0 | G40: =(B40-C40-D40)*16%+(B40-C40-D40) -> 0
A41: PPCP M 311T | B41: 109100 | C41: 1000 | D41: 6450 | E41: =+(B41-C41-D41)*0.1236 -> 12563.94 | F41: =+(B41-C41-D41+E41)*0.02 -> 2284.2788 | G41: =+B41-C41-D41+E41+F41 -> 116498.2188
A42: PPCP M 340 / M365 | B42: 106800 | C42: 1000 | D42: 6300 | E42: 12298.2 | F42: 2235.964 | G42: 114034.164
A43: PP CP M 310 | B43: 107500 | C43: 1000 | D43: =+[1]PP!P16 -> 6150 | E43: 12403.26 | F43: 2255.0652 | G43: 115008.3252
A44: PP CP M 312 | B44: 105600 | C44: 1000 | D44: 6000 | E44: 12186.96 | F44: 2215.7392 | G44: 113002.6992
A45: PP CP M 304 / M 325 | B45: 105550 | C45: 1000 | D45: 6000 | E45: 12180.78 | F45: 2214.6156 | G45: 112945.3956
A46: PP CP M 307 / M 315 | B46: 105050 | C46: 1000 | D46: 6000 | E46: 12118.98 | F46: 2203.3796 | G46: 112372.3596
A47: PP RCP B 200 | B47: 105900 | C47: 1000 | D47: 5300 | E47: 12310.56 | F47: 2238.2112 | G47: 114148.7712
A48: PP RCP B202S | B48: 108900 | C48: 1000 | D48: 5000 | E48: 12718.44 | F48: 2312.3688 | G48: 117930.8088
A49: PP RCP M212S | B49: 107100 | C49: 1000 | D49: =+[1]PP!K16 -> 6000 | E49: 12372.36 | F49: 2249.4472 | G49: 114721.8072
A50: LLDPE
A51: FILM 71601D | B51: 104450 | C51: 1000 | D51: 6850 | E51: =+(B51-C51-D51)*0.1236 -> 11939.76 | F51: =+(B51-C51-D51+E51)*0.02 -> 2170.7952 | G51: =+B51-C51-D51+E51+F51 -> 110710.5552
A52: FILM 71501S,71601W | B52: 103900 | C52: 1000 | D52: 7300 | E52: 11816.16 | F52: 2148.3232 | G52: 109564.4832
A53: FILM 71602 S / W | B53: 103900 | C53: 1000 | D53: 7300 | E53: 11816.16 | F53: 2148.3232 | G53: 109564.4832
A54: ROTO 73005 T/73204 T | B54: 103750 | C54: 1000 | D54: 5900 | E54: 11970.66 | F54: 2176.4132 | G54: 110997.0732
A55: ROTO 73005 TU | B55: 105250 | C55: 1000 | D55: 5900 | E55: 12156.06 | F55: 2210.1212 | G55: 112716.1812
A56: EC 72307 E | B56: 105950 | C56: 1000 | D56: 6800 | E56: 12131.34 | F56: 2205.6268 | G56: 112486.9668
A57: LLT - 12 | B57: 105450 | C57: 1000 | D57: 6800 | E57: =+(B57-C57-D57)*0.1236 -> 12069.54 | F57: 2194.3908 | G57: 111913.9308
A58: OG | B58: 99400 | C58: 0 | D58: 2250 | E58: 12007.74 | F58: 2183.1548 | G58: 111340.8948
A59: POST SALES QUANTITY DISCOUNT AS APPLICABLE
A60: QTY. MT FOR HD / LL | B60: >= 10 | C60: >=15 | D60: >=30 | E60: >=60 | F60: >= 100 | G60: >= 200 | H60: >= 400
A61: HDPE/LLDPE | B61: 300/- | C61: 300/- | D61: 400/- | E61: 450/- | F61: 550/- | G61: 650/- | H61: 750/-
A62: QTY. MT FOR PP | B62: >=15 | C62: >=30 | D62: >=60 | E62: >=100 | F62: >=200 | G62: >=400
A63: PP | B63: 300/- | C63: 400/- | D63: 450/- | E63: 550/- | F63: 650/- | G63: 750/-
A64: · FOR CREDIT PURCHASE INTREST FREE CREDIT WILL BE 14 DAYS FROM THE DATE OF INVOICE. AN EPI
A65: RS. 70 / MT PER DAY FOR EX-PLANT
A66: · Trade Discount of Rs. 4000 PMT applicable on R103 - to be adjusted pre-exice basis on Ex-plant sales only.
A67: · Trade Discount of Rs. 3000 PMT applicable on R5801 - to be adjusted pre-exice basis on Ex-plant sales only.
A68: · Trade Discount of Rs. 2000 PMT applicable on B5500 - to be adjusted pre-exice basis on Ex-plant sales only.
A69: · NON PRIME GRADE RS.800/MT LESS THAN THE BASIC PRIME GRADE.
A70: · CHEQUE RETURN PENALTY RS.1000/-PER INSTRUMENT.
A71: · UNLOADING & VARAI CHARGES TO BE BORNE BY THE CUSTOMER.
A72: · “C” FORM REQUIRED IN ADVANCE.
A73: · QUANTITY DISCOUNT WOULD NOT BE APPLICABLE ON COMBINATION OF HDPE AND LLDPE GRADES.
A74: · PRICE MAY CHANGE WITHOUT ANY PRIOR NOTICE. PRICE PREVAILING AT THE TIME OF DISPATCH WILL APPLY.
A75: REGARDS
A76: HITESH SHAH - 9820106078
A77: GIRISH SHAH - 9320949656

Sheet BHIWANDI
A1: GANPATI PETROCHEMICALS
A2: Consigment Stockist of : HALDIA PETROCHEMICALS LTD.
A3: 152,Sanjay Bldg. No. 6,Mittal Ind.Estate,Andheri Kurla Road,Marol,Andheri(East),MUMBAI-400 059.
A4: Tel. 28509801 / 28517451 / 32460637 Telefax. 28509802 / E- MAIL ganpetro@vsnl.com
A5: HDPE / PP / LLDPE PRICES EX-HALDIA PETROCHEMICALS LTD. PLANT FOR BHIWANDI
A6: Bhivandi W.H. Add :- Godown No. 20,Thakkar Compound,Valgaon,Anjur Rd,Bhivandi,Dist. Thane. TEL:- 09324038864
A7: HDPE, LLDPE & PP PRICE W.E.F. DT. 18.07.2013
A8: GRADE | B8: BASIC | C8: LESS. | D8: LESS. | E8: ADD E.D | F8: ADD CST | G8: ADD | H8: ADD S.T. | I8: CASH AMT
A9: HDPE | C9: C.D. | D9: LOC.SUB | E9: 0.1236 | F9: 0.02 | G9: TRANSP | H9: 0.0309 | I9: PMT
A10: M 6007L / M 5005L | B10: 99550 | C10: 1000 | D10: 6650 | E10: =+(B10-C10-D10)*0.1236 -> 11358.84 | F10: =+(B10-C10-D10+E10)*0.02 -> 2065.1768 | G10: 3073 | H10: =+G10*0.0309 -> 94.9557 | I10: =+B10-C10-D10+E10+F10+G10+H10 -> 108491.9725
A11: M 6007LU | B11: 101050 | C11: 1000 | D11: 6650 | E11: =+(B11-C11-D11)*0.1236 -> 11544.24 | F11: 2098.8848 | G11: 3073 | H11: 94.9557 | I11: =+B11-C11-D11+E11+F11+G11+H11 -> 110211.0805
A12: M 5002L | B12: 99050 | C12: 1000 | D12: 6650 | E12: 11297.04 | F12: 2053.9408 | G12: 3073 | H12: 94.9557 | I12: =+B12-C12-D12+E12+F12+G12+H12 -> 107918.9365
A13: HD BM B 6401 | B13: 98500 | C13: 1000 | D13: 6700 | E13: 11222.88 | F13: 2040.4576 | G13: 3073 | H13: 94.9557 | I13: 107231.2933
A14: HD BM E 5201 | B14: 100000 | C14: 1000 | D14: 6700 | E14: 11408.28 | F14: 2074.1656 | G14: 3073 | H14: 94.9557 | I14: 108950.4013
A15: HD BM E5201S | B15: 99000 | C15: 1000 | D15: 6700 | E15: 11284.68 | F15: 2051.6936 | G15: 3073 | H15: 94.9557 | I15: 107804.3293
A16: MBM B 5500 | B16: 102200 | C16: 1000 | D16: 6400 | E16: 11717.28 | F16: 2130.3456 | G16: 3073 | H16: 94.9557 | I16: 111815.5813
A17: HM FILM F 5600/5400 | B17: 99450 | C17: 1000 | D17: 5900 | E17: 11439.18 | F17: 2079.7836 | G17: 3073 | H17: 94.9557 | I17: 109236.9193
A18: RAF/MFIL R5801 | B18: 101850 | C18: 1000 | D18: 6500 | E18: 11661.66 | F18: 2120.2332 | G18: 3073 | H18: 94.9557 | I18: 111299.8489
A19: RAF/MFIL HD T9 | B19: 98550 | C19: 1000 | D19: 6500 | E19: 11253.78 | F19: 2046.0756 | G19: 3073 | H19: 94.9557 | I19: 107517.8113
A20: HD FILM HDT6 / F5001 | B20: 100350 | C20: 1000 | D20: 7150 | E20: 11395.92 | F20: 2071.9184 | G20: 3073 | H20: 94.9557 | I20: 108835.7941
A21: PIPE P5200UV | B21: 103250 | C21: 1000 | D21: 6850 | E21: 11791.44 | F21: 2143.8288 | G21: 3073 | H21: 94.9557 | I21: 112503.2245
A22: IM M 5018L/M 5025L/M5818 | B22: 98400 | C22: 1000 | D22: 6550 | E22: 11229.06 | F22: 2041.5812 | G22: 3073 | H22: 94.9557 | I22: 107288.5969
A23: RAF HD T10 / HD T10S | B23: 99450 | C23: 1000 | D23: 6650 | E23: 11346.48 | F23: 2062.9296 | G23: 3073 | H23: 94.9557 | I23: 108377.3653
A24: PIPE P 5300 | B24: 104700 | C24: 1000 | D24: 7000 | E24: 11952.12 | F24: 2173.0424 | G24: 3073 | H24: 94.9557 | I24: 113993.1181
A25: PIPE P5200(P.E-63) | B25: 101750 | C25: 1000 | D25: 6850 | E25: 11606.04 | F25: 2110.1208 | G25: 3073 | H25: 94.9557 | I25: 110784.1165
A26: HD T9C | B26: 93900 | C26: 0 | D26: 2100 | E26: 11346.48 | F26: 2062.9296 | G26: 3073 | H26: 94.9557 | I26: 108377.3653
A27: OG | B27: 92900 | C27: 0 | D27: 2100 | E27: 11222.88 | F27: 2040.4576 | G27: 3073 | H27: 94.9557 | I27: 107231.2933
A28: PP
A29: FILM F 110 | B29: 103800 | C29: 1000 | D29: 6000 | E29: =+(B29-C29-D29)*0.1236 -> 11964.48 | F29: =+(B29-C29-D29+E29)*0.02 -> 2175.2896 | G29: 3073 | H29: =+G29*0.0309 -> 94.9557 | I29: =+B29-C29-D29+E29+F29+G29+H29 -> 114107.7253
A30: HPIM M 103 | B30: 103600 | C30: 1000 | D30: 6850 | E30: 11834.7 | F30: 2151.694 | G30: 3073 | H30: 94.9557 | I30: 112904.3497
A31: HPIM M 110 | B31: 102250 | C31: 1000 | D31: 5900 | E31: 11785.26 | F31: 2142.7052 | G31: 3073 | H31: 94.9557 | I31: 112445.9209
A32: TF T 103 / T 105N | B32: 104350 | C32: 1000 | D32: 6000 | E32: 12032.46 | F32: 2187.6492 | G32: 3073 | H32: 94.9557 | I32: 114738.0649
A33: RAFFIA R 103 | B33: 108150 | C33: 1000 | D33: 6850 | E33: 12397.08 | F33: 2253.9416 | G33: 3073 | H33: 94.9557 | I33: 118118.9773
A34: BOPP F 103 / F 103S | B34: 104550 | C34: 1000 | D34: 6250 | E34: 12026.28 | F34: 2186.5256 | G34: 3073 | H34: 94.9557 | I34: 114680.7613
A35: PP M 108/ M106 | B35: 102150 | C35: 1000 | D35: 6300 | E35: 11723.46 | F35: 2131.4692 | G35: 3073 | H35: 94.9557 | I35: 111872.8849
A36: PP F135 / E125 | B36: 104150 | C36: 1000 | D36: 6300 | E36: 11970.66 | F36: 2176.4132 | G36: 3073 | H36: 94.9557 | I36: 114165.0289
A37: PP HP OG | B37: 97250 | C37: 0 | D37: 0 | E37: 12020.1 | F37: 2185.402 | G37: 3073 | H37: 94.9557 | I37: 114623.4577
A38: PP PS | B38: 93250 | C38: 0 | D38: 0 | E38: 11525.7 | F38: 2095.514 | G38: 3073 | H38: 94.9557 | I38: 110039.1697
A39: PP WS | B39: 91250 | C39: 0 | D39: 0 | E39: 11278.5 | F39: 2050.57 | G39: 3073 | H39: 94.9557 | I39: 107747.0257
A40: PP CP/RCP
A41: PPCP M 311T | B41: 109100 | C41: 1000 | D41: 7150 | E41: =+(B41-C41-D41)*0.1236 -> 12477.42 | F41: =+(B41-C41-D41+E41)*0.02 -> 2268.5484 | G41: 3073 | H41: =+G41*0.0309 -> 94.9557 | I41: =+B41-C41-D41+E41+F41+G41+H41 -> 118863.9241
A42: PPCP M 340 / M365 | B42: 106800 | C42: 1000 | D42: 6650 | E42: 12254.94 | F42: 2228.0988 | G42: 3073 | H42: 94.9557 | I42: 116800.9945
A43: PP CP M 310 | B43: 107500 | C43: 1000 | D43: 6550 | E43: 12353.82 | F43: 2246.0764 | G43: 3073 | H43: 94.9557 | I43: 117717.8521
A44: PP CP M 312 | B44: 105600 | C44: 1000 | D44: 7000 | E44: 12063.36 | F44: 2193.2672 | G44: 3073 | H44: 94.9557 | I44: 115024.5829
A45: PP CP M 304 / M 325 | B45: 105550 | C45: 1000 | D45: 6950 | E45: 12063.36 | F45: 2193.2672 | G45: 3073 | H45: 94.9557 | I45: 115024.5829
A46: PP CP M 307 / M 315 | B46: 105050 | C46: 1000 | D46: 6950 | E46: 12001.56 | F46: 2182.0312 | G46: 3073 | H46: 94.9557 | I46: 114451.5469
A47: PP RCP B 200 | B47: 105900 | C47: 1000 | D47: 6600 | E47: 12149.88 | F47: 2208.9976 | G47: 3073 | H47: 94.9557 | I47: 115826.8333
A48: PP RCP B202S | B48: 108900 | C48: 1000 | D48: 6000 | E48: 12594.84 | F48: 2289.8968 | G48: 3073 | H48: 94.9557 | I48: 119952.6925
A49: PP RCP M212S | B49: 107100 | C49: 1000 | D49: 6950 | E49: 12254.94 | F49: 2228.0988 | G49: 3073 | H49: 94.9557 | I49: 116800.9945
A50: LLDPE
A51: FILM 71601D | B51: 104450 | C51: 1000 | D51: 7550 | E51: =+(B51-C51-D51)*0.1236 -> 11853.24 | F51: =+(B51-C51-D51+E51)*0.02 -> 2155.0648 | G51: 3073 | H51: =+G51*0.0309 -> 94.9557 | I51: =+B51-C51-D51+E51+F51+G51+H51 -> 113076.2605
A52: FILM 71501S,71601W | B52: 103900 | C52: 1000 | D52: 8000 | E52: 11729.64 | F52: 2132.5928 | G52: 3073 | H52: 94.9557 | I52: 111930.1885
A53: FILM 71602 S / W | B53: 103900 | C53: 1000 | D53: 8000 | E53: 11729.64 | F53: 2132.5928 | G53: 3073 | H53: 94.9557 | I53: 111930.1885
A54: ROTO 73005 T/73204 T | B54: 103750 | C54: 1000 | D54: 6400 | E54: 11908.86 | F54: 2165.1772 | G54: 3073 | H54: 94.9557 | I54: 113591.9929
A55: ROTO 73005 TU | B55: 105250 | C55: 1000 | D55: 6400 | E55: 12094.26 | F55: 2198.8852 | G55: 3073 | H55: 94.9557 | I55: 115311.1009
A56: EC 72307 E | B56: 105950 | C56: 1000 | D56: 7200 | E56: 12081.9 | F56: 2196.638 | G56: 3073 | H56: 94.9557 | I56: 115196.4937
A57: LLT - 12 | B57: 105450 | C57: 1000 | D57: 7200 | E57: =+(B57-C57-D57)*0.1236 -> 12020.1 | F57: 2185.402 | G57: 3073 | H57: =+G57*0.0309 -> 94.9557 | I57: 114623.4577
A58: OG | B58: 99400 | C58: 0 | D58: 2250 | E58: 12007.74 | F58: 2183.1548 | G58: 3073 | H58: 94.9557 | I58: 114508.8505
A59: POST SALES QUANTITY DISCOUNT AS APPLICABLE
A60: QTY. MT FOR HD / LL | B60: >= 10 | C60: >=15 | D60: >=30 | E60: >=60 | F60: >= 100 | G60: >= 200 | H60: >= 400
A61: HDPE/LLDPE | B61: 300/- | C61: 300/- | D61: 400/- | E61: 450/- | F61: 550/- | G61: 650/- | H61: 750/-
A62: QTY. MT FOR PP | B62: >=15 | C62: >=30 | D62: >=60 | E62: >=100 | F62: >=200 | G62: >=400
A63: PP | B63: 300/- | C63: 400/- | D63: 450/- | E63: 550/- | F63: 650/- | G63: 750/-
A64: · FOR CREDIT PURCHASE INTREST FREE CREDIT WILL BE 14 DAYS FROM THE DATE OF INVOICE. AN EPI
A65: RS. 70 / MT PER DAY FOR EX-PLANT
A66: · Trade Discount of Rs. 4000 PMT applicable on R103 - to be adjusted pre-exice basis on Ex-plant sales only.
A67: · Trade Discount of Rs. 3000 PMT applicable on R5801 - to be adjusted pre-exice basis on Ex-plant sales only.
A68: · Trade Discount of Rs. 2000 PMT applicable on B5500 - to be adjusted pre-exice basis on Ex-plant sales only.
A69: · NON PRIME GRADE RS.800/MT LESS THAN THE BASIC PRIME GRADE.
A70: · CHEQUE RETURN PENALTY RS.1000/-PER INSTRUMENT.
A71: · UNLOADING & VARAI CHARGES TO BE BORNE BY THE CUSTOMER.
A72: · “C” FORM REQUIRED IN ADVANCE.
A73: · QUANTITY DISCOUNT WOULD NOT BE APPLICABLE ON COMBINATION OF HDPE AND LLDPE GRADES.
A74: · PRICE MAY CHANGE WITHOUT ANY PRIOR NOTICE. PRICE PREVAILING AT THE TIME OF DISPATCH WILL APPLY.
A75: REGARDS
A76: HITESH SHAH - 9820106078
A77: GIRISH SHAH - 9320949656

Sheet MAHA(O.V.)
A1: GANPATI PETROCHEMICALS
A2: Consigment Stockist of : HALDIA PETROCHEMICALS LTD.
A3: 152,Sanjay Bldg. No. 6,Mittal Ind.Estate,Andheri Kurla Road,Marol,Andheri(East),MUMBAI-400 059.
A4: Tel. 28509801 / 28517451 / 32460637 Telefax. 28509802 / E- MAIL ganpetro@vsnl.com
A5: HDPE / PP / LLDPE PRICES EX-HALDIA PETROCHEMICALS LTD. PLANT FOR MAHARATRA(O.V.)
A6: Bhivandi W.H. Add :- Godown No. 20,Thakkar Compound,Valgaon,Anjur Rd,Bhivandi,Dist. Thane. TEL:- 09324038864
A7: HDPE, LLDPE & PP PRICE W.E.F. DT. 18.07.2013
A8: GRADE | B8: BASIC | C8: LESS. | D8: LESS. | E8: ADD | F8: ADD CST | G8: CASH AMT
A9: HDPE | C9: C.D. | D9: LOC.SUB | E9: 0.1236 | F9: 0.02 | G9: PMT
A10: M 6007L / M 5005L | B10: 99550 | C10: 1000 | D10: 6650 | E10: =+(B10-C10-D10)*0.1236 -> 11358.84 | F10: =+(B10-C10-D10+E10)*0.02 -> 2065.1768 | G10: =+B10-C10-D10+E10+F10 -> 105324.0168 | I10: TRANS.CHARGES PMT.
A11: M 6007LU | B11: 101050 | C11: 1000 | D11: 6650 | E11: =+(B11-C11-D11)*0.1236 -> 11544.24 | F11: =+(B11-C11-D11+E11)*0.02 -> 2098.8848 | G11: =+B11-C11-D11+E11+F11 -> 107043.1248
A12: M 5002L | B12: 99050 | C12: 1000 | D12: 6650 | E12: 11297.04 | F12: 2053.9408 | G12: 104750.9808
A13: HD BM B 6401 | B13: 98500 | C13: 1000 | D13: 6700 | E13: 11222.88 | F13: 2040.4576 | G13: 104063.3376 | H13: LOCATIONS | I13: FREIGHT | J13: ADD S.T.
A14: HD BM E 5201 | B14: 100000 | C14: 1000 | D14: 6700 | E14: 11408.28 | F14: 2074.1656 | G14: 105782.4456 | H14: **T.D. | I14: RS/MT. | J14: 0.0309
A15: HD BM E5201S | B15: 99000 | C15: 1000 | D15: 6700 | E15: 11284.68 | F15: 2051.6936 | G15: 104636.3736
A16: MBM B 5500 | B16: 102200 | C16: 1000 | D16: 6400 | E16: 11717.28 | F16: 2130.3456 | G16: 108647.6256
A17: HM FILM F 5600/5400 | B17: 99450 | C17: 1000 | D17: 5900 | E17: 11439.18 | F17: 2079.7836 | G17: 106068.9636 | H17: AHMEDNAGAR-5 | I17: 2979 | J17: =+I17*0.0309 -> 92.0511
A18: RAF/MFIL R5801 | B18: 101850 | C18: 1000 | D18: 6500 | E18: 11661.66 | F18: 2120.2332 | G18: 108131.8932
A19: RAF/MFIL HD T9 | B19: 98550 | C19: 1000 | D19: 6500 | E19: 11253.78 | F19: 2046.0756 | G19: 104349.8556 | H19: THANE - 5 | I19: 3172 | J19: =+I19*0.0309 -> 98.0148
A20: HD FILM HDT6 / F5001 | B20: 100350 | C20: 1000 | D20: 7150 | E20: 11395.92 | F20: 2071.9184 | G20: 105667.8384 | H20: ALIBAUGH - 5 | I20: 3566 | J20: =+I20*0.0309 -> 110.1894
A21: PIPE P5200UV | B21: 103250 | C21: 1000 | D21: 6850 | E21: 11791.44 | F21: 2143.8288 | G21: 109335.2688
A22: IM M 5018L/M 5025L/M5818 | B22: 98400 | C22: 1000 | D22: 6550 | E22: 11229.06 | F22: 2041.5812 | G22: 104120.6412 | H22: GRT.MUMBAI -5 | I22: 3228 | J22: =+I22*0.0309 -> 99.7452
A23: RAF HD T10 / HD T10S | B23: 99450 | C23: 1000 | D23: 6650 | E23: 11346.48 | F23: 2062.9296 | G23: 105209.4096 | H23: IGATPURI - 5 | I23: 2872 | J23: =+I23*0.0309 -> 88.7448
A24: PIPE P 5300 | B24: 104700 | C24: 1000 | D24: 7000 | E24: 11952.12 | F24: 2173.0424 | G24: 110825.1624 | H24: KALYAN - 5 | I24: 3074 | J24: =+I24*0.0309 -> 94.9866
A25: PIPE P5200(P.E-63) | B25: 101750 | C25: 1000 | D25: 6850 | E25: 11606.04 | F25: 2110.1208 | G25: 107616.1608 | H25: VASAI | I25: 3173 | J25: =+I25*0.0309 -> 98.0457
A26: HD T9C | B26: 93900 | C26: 0 | D26: 2100 | E26: 11346.48 | F26: 2062.9296 | G26: 105209.4096 | H26: KHOPOLI - 5 | I26: 3492 | J26: =+I26*0.0309 -> 107.9028
A27: OG | B27: 92900 | C27: 0 | D27: 2100 | E27: 11222.88 | F27: 2040.4576 | G27: 104063.3376 | H27: BHIWANDI - 5 | I27: 3073 | J27: 94.9557
A28: PP | H28: LONAVALA - 6 | I28: 3240 | J28: 100.116
A29: FILM F 110 | B29: 103800 | C29: 1000 | D29: 6000 | E29: =+(B29-C29-D29)*0.1236 -> 11964.48 | F29: =+(B29-C29-D29+E29)*0.02 -> 2175.2896 | G29: 110939.7696 | H29: MURBAD - 5 | I29: 3170 | J29: 97.953
A30: HPIM M 103 | B30: 103600 | C30: 1000 | D30: 6850 | E30: 11834.7 | F30: 2151.694 | G30: 109736.394 | H30: PUNE - 5 | I30: 3149 | J30: 97.3041
A31: HPIM M 110 | B31: 102250 | C31: 1000 | D31: 5900 | E31: 11785.26 | F31: 2142.7052 | G31: 109277.9652 | H31: NAGHOTHANE-5 | I31: 3286 | J31: 101.5374
A32: TF T 103 / T 105N | B32: 104350 | C32: 1000 | D32: 6000 | E32: 12032.46 | F32: 2187.6492 | G32: 111570.1092 | H32: NASIK - 5 | I32: 2842 | J32: 87.8178
A33: RAFFIA R 103 | B33: 108150 | C33: 1000 | D33: 6850 | E33: 12397.08 | F33: 2253.9416 | G33: 114951.0216 | H33: SINNAR-5 | I33: 2866 | J33: 88.5594
A34: BOPP F 103 / F 103S | B34: 104550 | C34: 1000 | D34: 6250 | E34: 12026.28 | F34: 2186.5256 | G34: 111512.8056 | H34: MALEGAON-5 | I34: 3094 | J34: 95.6046
A35: PP M 108/ M106 | B35: 102150 | C35: 1000 | D35: 6300 | E35: 11723.46 | F35: 2131.4692 | G35: 108704.9292
A36: PP F135 / E125 | B36: 104150 | C36: 1000 | D36: 6300 | E36: 11970.66 | F36: 2176.4132 | G36: 110997.0732
A37: PP HP OG | B37: 97250 | C37: 0 | D37: 0 | E37: 12020.1 | F37: 2185.402 | G37: 111455.502 | H37: NEW BOMBAY- 5 | I37: 3228 | J37: =+I37*0.0309 -> 99.7452
A38: PP PS | B38: 93250 | C38: 0 | D38: 0 | E38: 11525.7 | F38: 2095.514 | G38: 106871.214 | H38: PALGHAR - 5 | I38: 3278 | J38: =+I38*0.0309 -> 101.2902
A39: PP WS | B39: 91250 | C39: 0 | D39: 0 | E39: 11278.5 | F39: 2050.57 | G39: 104579.07 | H39: DHULIA - 5 | I39: 2806 | J39: =+I39*0.0309 -> 86.7054
A40: PP CP/RCP | E40: =(B40-C40-D40)*16% -> 0 | G40: =(B40-C40-D40)*16%+(B40-C40-D40) -> 0 | H40: *T.D.=TRANSIT DAYS
A41: PPCP M 311T | B41: 109100 | C41: 1000 | D41: 7150 | E41: =+(B41-C41-D41)*0.1236 -> 12477.42 | F41: =+(B41-C41-D41+E41)*0.02 -> 2268.5484 | G41: 115695.9684
A42: PPCP M 340 / M365 | B42: 106800 | C42: 1000 | D42: 6650 | E42: 12254.94 | F42: 2228.0988 | G42: 113633.0388
A43: PP CP M 310 | B43: 107500 | C43: 1000 | D43: 6550 | E43: 12353.82 | F43: 2246.0764 | G43: 114549.8964
A44: PP CP M 312 | B44: 105600 | C44: 1000 | D44: 7000 | E44: 12063.36 | F44: 2193.2672 | G44: 111856.6272
A45: PP CP M 304 / M 325 | B45: 105550 | C45: 1000 | D45: 6950 | E45: 12063.36 | F45: 2193.2672 | G45: 111856.6272
A46: PP CP M 307 / M 315 | B46: 105050 | C46: 1000 | D46: 6950 | E46: 12001.56 | F46: 2182.0312 | G46: 111283.5912
A47: PP RCP B 200 | B47: 105900 | C47: 1000 | D47: 6600 | E47: 12149.88 | F47: 2208.9976 | G47: 112658.8776
A48: PP RCP B202S | B48: 108900 | C48: 1000 | D48: 6000 | E48: 12594.84 | F48: 2289.8968 | G48: 116784.7368
A49: PP RCP M212S | B49: 107100 | C49: 1000 | D49: 6950 | E49: 12254.94 | F49: 2228.0988 | G49: 113633.0388
A50: LLDPE
A51: FILM 71601D | B51: 104450 | C51: 1000 | D51: 7550 | E51: =+(B51-C51-D51)*0.1236 -> 11853.24 | F51: =+(B51-C51-D51+E51)*0.02 -> 2155.0648 | G51: 109908.3048
A52: FILM 71501S,71601W | B52: 103900 | C52: 1000 | D52: 8000 | E52: 11729.64 | F52: 2132.5928 | G52: 108762.2328
A53: FILM 71602 S / W | B53: 103900 | C53: 1000 | D53: 8000 | E53: 11729.64 | F53: 2132.5928 | G53: 108762.2328
A54: ROTO 73005 T/73204 T | B54: 103750 | C54: 1000 | D54: 6400 | E54: 11908.86 | F54: 2165.1772 | G54: 110424.0372
A55: ROTO 73005 TU | B55: 105250 | C55: 1000 | D55: 6400 | E55: 12094.26 | F55: 2198.8852 | G55: 112143.1452
A56: EC 72307 E | B56: 105950 | C56: 1000 | D56: 7200 | E56: 12081.9 | F56: 2196.638 | G56: 112028.538
A57: LLT - 12 | B57: 105450 | C57: 1000 | D57: 7200 | E57: =+(B57-C57-D57)*0.1236 -> 12020.1 | F57: 2185.402 | G57: 111455.502
A58: OG | B58: 99400 | C58: 0 | D58: 2250 | E58: 12007.74 | F58: 2183.1548 | G58: 111340.8948
A59: POST SALES QUANTITY DISCOUNT AS APPLICABLE
A60: QTY. MT FOR HD / LL | B60: >= 10 | C60: >=15 | D60: >=30 | E60: >=60 | F60: >= 100 | G60: >= 200 | H60: >= 400
A61: HDPE/LLDPE | B61: 300/- | C61: 300/- | D61: 400/- | E61: 450/- | F61: 550/- | G61: 650/- | H61: 750/-
A62: QTY. MT FOR PP | B62: >=15 | C62: >=30 | D62: >=60 | E62: >=100 | F62: >=200 | G62: >=400
A63: PP | B63: 300/- | C63: 400/- | D63: 450/- | E63: 550/- | F63: 650/- | G63: 750/-
A64: · FOR CREDIT PURCHASE INTREST FREE CREDIT WILL BE 14 DAYS FROM THE DATE OF INVOICE. AN EPI
A65: RS. 70 / MT PER DAY FOR EX-PLANT
A66: · Trade Discount of Rs. 4000 PMT applicable on R103 - to be adjusted pre-exice basis on Ex-plant sales only.
A67: · Trade Discount of Rs. 3000 PMT applicable on R5801 - to be adjusted pre-exice basis on Ex-plant sales only.
A68: · Trade Discount of Rs. 2000 PMT applicable on B5500 - to be adjusted pre-exice basis on Ex-plant sales only.
A69: · NON PRIME GRADE RS.800/MT LESS THAN THE BASIC PRIME GRADE.
A70: · CHEQUE RETURN PENALTY RS.1000/-PER INSTRUMENT.
A71: · UNLOADING & VARAI CHARGES TO BE BORNE BY THE CUSTOMER.
A72: · “C” FORM REQUIRED IN ADVANCE.
A73: · QUANTITY DISCOUNT WOULD NOT BE APPLICABLE ON COMBINATION OF HDPE AND LLDPE GRADES.
A74: · PRICE MAY CHANGE WITHOUT ANY PRIOR NOTICE. PRICE PREVAILING AT THE TIME OF DISPATCH WILL APPLY.
A75: REGARDS
A76: HITESH SHAH - 9820106078
A77: GIRISH SHAH - 9320949656

Sheet MAHA(VIDH)
A1: GANPATI PETROCHEMICALS
A2: Consigment Stockist of : HALDIA PETROCHEMICALS LTD.
A3: 152,Sanjay Bldg. No. 6,Mittal Ind.Estate,Andheri Kurla Road,Marol,Andheri(East),MUMBAI-400 059.
A4: Tel. 28509801 / 28517451 / 32460637 Telefax. 28509802 / E- MAIL ganpetro@vsnl.com
A5: HDPE / PP / LLDPE PRICES EX-HALDIA PETROCHEMICALS LTD. PLANT FOR MAHARASTRA(vidharbh)
A6: Bhivandi W.H. Add :- Godown No. 20,Thakkar Compound,Valgaon,Anjur Rd,Bhivandi,Dist. Thane. TEL:- 09324038864
A7: HDPE, LLDPE & PP PRICE W.E.F. DT. 18.07.2013
A8: GRADE | B8: BASIC | C8: LESS. | D8: LESS. | E8: ADD | F8: ADD CST | G8: CASH AMT
A9: HDPE | C9: C.D. | D9: LOC.SUB | E9: 0.1236 | F9: 0.02 | G9: PMT
A10: M 6007L / M 5005L | B10: 99550 | C10: 1000 | D10: 4050 | E10: =+(B10-C10-D10)*0.1236 -> 11680.2 | F10: =+(B10-C10-D10+E10)*0.02 -> 2123.604 | G10: =+B10-C10-D10+E10+F10 -> 108303.804 | I10: TRANS.CHARGES PMT.
A11: M 6007LU | B11: 101050 | C11: 1000 | D11: 4050 | E11: =+(B11-C11-D11)*0.1236 -> 11865.6 | F11: =+(B11-C11-D11+E11)*0.02 -> 2157.312 | G11: =+B11-C11-D11+E11+F11 -> 110022.912
A12: M 5002L | B12: 99050 | C12: 1000 | D12: 4050 | E12: 11618.4 | F12: 2112.368 | G12: 107730.768
A13: HD BM B 6401 | B13: 98500 | C13: 1000 | D13: 4050 | E13: 11550.42 | F13: 2100.0084 | G13: 107100.4284 | H13: LOCATIONS | I13: FREIGHT | J13: ADD S.T.
A14: HD BM E 5201 | B14: 100000 | C14: 1000 | D14: 4050 | E14: 11735.82 | F14: 2133.7164 | G14: 108819.5364 | H14: **T.D. | I14: RS/MT. | J14: 0.0309
A15: HD BM E5201S | B15: 99000 | C15: 1000 | D15: 4050 | E15: 11612.22 | F15: 2111.2444 | G15: 107673.4644
A16: MBM B 5500 | B16: 102200 | C16: 1000 | D16: 3800 | E16: 12038.64 | F16: 2188.7728 | G16: 111627.4128
A17: HM FILM F 5600/5400 | B17: 99450 | C17: 1000 | D17: 3650 | E17: 11717.28 | F17: 2130.3456 | G17: 108647.6256 | H17: NAGPUR-3 | I17: 2003 | J17: =+I17*0.0309 -> 61.8927
A18: RAF/MFIL R5801 | B18: 101850 | C18: 1000 | D18: 3900 | E18: 11983.02 | F18: 2178.6604 | G18: 111111.6804
A19: RAF/MFIL HD T9 | B19: 98550 | C19: 1000 | D19: 3900 | E19: 11575.14 | F19: 2104.5028 | G19: 107329.6428 | H19: AMRAVATI-4 | I19: 2561 | J19: =+I19*0.0309 -> 79.1349
A20: HD FILM HDT6 / F5001 | B20: 100350 | C20: 1000 | D20: 4650 | E20: 11704.92 | F20: 2128.0984 | G20: 108533.0184
A21: PIPE P5200UV | B21: 103250 | C21: 1000 | D21: 4250 | E21: 12112.8 | F21: 2202.256 | G21: 112315.056 | H21: WARDHA-3 | I21: 2136 | J21: =+I21*0.0309 -> 66.0024
A22: IM M 5018L/M 5025L/M5818 | B22: 98400 | C22: 1000 | D22: 4150 | E22: 11525.7 | F22: 2095.514 | G22: 106871.214
A23: RAF HD T10 / HD T10S | B23: 99450 | C23: 1000 | D23: 4250 | E23: 11643.12 | F23: 2116.8624 | G23: 107959.9824
A24: PIPE P 5300 | B24: 104700 | C24: 1000 | D24: 4350 | E24: 12279.66 | F24: 2232.5932 | G24: 113862.2532
A25: PIPE P5200(P.E-63) | B25: 101750 | C25: 1000 | D25: 4250 | E25: 11927.4 | F25: 2168.548 | G25: 110595.948
A26: HD T9C | B26: 93900 | C26: 0 | D26: 2100 | E26: 11346.48 | F26: 2062.9296 | G26: 105209.4096
A27: OG | B27: 92900 | C27: 0 | D27: 2100 | E27: 11222.88 | F27: 2040.4576 | G27: 104063.3376
A28: PP
A29: FILM F 110 | B29: 103800 | C29: 1000 | D29: 2700 | E29: =+(B29-C29-D29)*0.1236 -> 12372.36 | F29: =+(B29-C29-D29+E29)*0.02 -> 2249.4472 | G29: 114721.8072 | H29: *T.D.=TRANSIT DAYS
A30: HPIM M 103 | B30: 103600 | C30: 1000 | D30: 4250 | E30: 12156.06 | F30: 2210.1212 | G30: 112716.1812
A31: HPIM M 110 | B31: 102250 | C31: 1000 | D31: 2450 | E31: 12211.68 | F31: 2220.2336 | G31: 113231.9136
A32: TF T 103 / T 105N | B32: 104350 | C32: 1000 | D32: 3100 | E32: 12390.9 | F32: 2252.818 | G32: 114893.718
A33: RAFFIA R 103 | B33: 108150 | C33: 1000 | D33: 4250 | E33: 12718.44 | F33: 2312.3688 | G33: 117930.8088
A34: BOPP F 103 / F 103S | B34: 104550 | C34: 1000 | D34: 3650 | E34: 12347.64 | F34: 2244.9528 | G34: 114492.5928
A35: PP M 108/ M106 | B35: 102150 | C35: 1000 | D35: 2850 | E35: 12149.88 | F35: 2208.9976 | G35: 112658.8776
A36: PP F135 / E125 | B36: 104150 | C36: 1000 | D36: 3650 | E36: 12298.2 | F36: 2235.964 | G36: 114034.164
A37: PP HP OG | B37: 97250 | C37: 0 | D37: 0 | E37: 12020.1 | F37: 2185.402 | G37: 111455.502
A38: PP PS | B38: 93250 | C38: 0 | D38: 0 | E38: 11525.7 | F38: 2095.514 | G38: 106871.214
A39: PP WS | B39: 91250 | C39: 0 | D39: 0 | E39: 11278.5 | F39: 2050.57 | G39: 104579.07
A40: PP CP/RCP | E40: =(B40-C40-D40)*16% -> 0 | G40: =(B40-C40-D40)*16%+(B40-C40-D40) -> 0
A41: PPCP M 311T | B41: 109100 | C41: 1000 | D41: 4500 | E41: =+(B41-C41-D41)*0.1236 -> 12804.96 | F41: =+(B41-C41-D41+E41)*0.02 -> 2328.0992 | G41: 118733.0592
A42: PPCP M 340 / M365 | B42: 106800 | C42: 1000 | D42: 4050 | E42: 12576.3 | F42: 2286.526 | G42: 116612.826
A43: PP CP M 310 | B43: 107500 | C43: 1000 | D43: 3950 | E43: 12675.18 | F43: 2304.5036 | G43: 117529.6836
A44: PP CP M 312 | B44: 105600 | C44: 1000 | D44: 4400 | E44: 12384.72 | F44: 2251.6944 | G44: 114836.4144
A45: PP CP M 304 / M 325 | B45: 105550 | C45: 1000 | D45: 4350 | E45: 12384.72 | F45: 2251.6944 | G45: 114836.4144
A46: PP CP M 307 / M 315 | B46: 105050 | C46: 1000 | D46: 4350 | E46: 12322.92 | F46: 2240.4584 | G46: 114263.3784
A47: PP RCP B 200 | B47: 105900 | C47: 1000 | D47: 4000 | E47: 12471.24 | F47: 2267.4248 | G47: 115638.6648
A48: PP RCP B202S | B48: 108900 | C48: 1000 | D48: 3400 | E48: 12916.2 | F48: 2348.324 | G48: 119764.524
A49: PP RCP M212S | B49: 107100 | C49: 1000 | D49: 4300 | E49: 12582.48 | F49: 2287.6496 | G49: 116670.1296
A50: LLDPE
A51: FILM 71601D | B51: 104450 | C51: 1000 | D51: 4850 | E51: =+(B51-C51-D51)*0.1236 -> 12186.96 | F51: =+(B51-C51-D51+E51)*0.02 -> 2215.7392 | G51: 113002.6992
A52: FILM 71501S,71601W | B52: 103900 | C52: 1000 | D52: 5300 | E52: 12063.36 | F52: 2193.2672 | G52: 111856.6272
A53: FILM 71602 S / W | B53: 103900 | C53: 1000 | D53: 5300 | E53: 12063.36 | F53: 2193.2672 | G53: 111856.6272
A54: ROTO 73005 T/73204 T | B54: 103750 | C54: 1000 | D54: 3700 | E54: 12242.58 | F54: 2225.8516 | G54: 113518.4316
A55: ROTO 73005 TU | B55: 105250 | C55: 1000 | D55: 3700 | E55: 12427.98 | F55: 2259.5596 | G55: 115237.5396
A56: EC 72307 E | B56: 105950 | C56: 1000 | D56: 4550 | E56: 12409.44 | F56: 2256.1888 | G56: 115065.6288
A57: LLT - 12 | B57: 105450 | C57: 1000 | D57: 4550 | E57: =+(B57-C57-D57)*0.1236 -> 12347.64 | F57: 2244.9528 | G57: 114492.5928
A58: OG | B58: 99400 | C58: 0 | D58: 2250 | E58: 12007.74 | F58: 2183.1548 | G58: 111340.8948
A59: POST SALES QUANTITY DISCOUNT AS APPLICABLE
A60: QTY. MT FOR HD / LL | B60: >= 10 | C60: >=15 | D60: >=30 | E60: >=60 | F60: >= 100 | G60: >= 200 | H60: >= 400
A61: HDPE/LLDPE | B61: 300/- | C61: 300/- | D61: 400/- | E61: 450/- | F61: 550/- | G61: 650/- | H61: 750/-
A62: QTY. MT FOR PP | B62: >=15 | C62: >=30 | D62: >=60 | E62: >=100 | F62: >=200 | G62: >=400
A63: PP | B63: 300/- | C63: 400/- | D63: 450/- | E63: 550/- | F63: 650/- | G63: 750/-
A64: · FOR CREDIT PURCHASE INTREST FREE CREDIT WILL BE 14 DAYS FROM THE DATE OF INVOICE. AN EPI
A65: RS. 70 / MT PER DAY FOR EX-PLANT
A66: · Trade Discount of Rs. 4000 PMT applicable on R103 - to be adjusted pre-exice basis on Ex-plant sales only.
A67: · Trade Discount of Rs. 3000 PMT applicable on R5801 - to be adjusted pre-exice basis on Ex-plant sales only.
A68: · Trade Discount of Rs. 2000 PMT applicable on B5500 - to be adjusted pre-exice basis on Ex-plant sales only.
A69: · NON PRIME GRADE RS.800/MT LESS THAN THE BASIC PRIME GRADE.
A70: · CHEQUE RETURN PENALTY RS.1000/-PER INSTRUMENT.
A71: · UNLOADING & VARAI CHARGES TO BE BORNE BY THE CUSTOMER.
A72: · “C” FORM REQUIRED IN ADVANCE.
A73: · QUANTITY DISCOUNT WOULD NOT BE APPLICABLE ON COMBINATION OF HDPE AND LLDPE GRADES.
A74: · PRICE MAY CHANGE WITHOUT ANY PRIOR NOTICE. PRICE PREVAILING AT THE TIME OF DISPATCH WILL APPLY.
A75: REGARDS
A76: HITESH SHAH - 9820106078
A77: GIRISH SHAH - 9320949656

Sheet MAHA(KHAN)
A1: GANPATI PETROCHEMICALS
A2: Consigment Stockist of : HALDIA PETROCHEMICALS LTD.
A3: 152,Sanjay Bldg. No. 6,Mittal Ind.Estate,Andheri Kurla Road,Marol,Andheri(East),MUMBAI-400 059.
A4: Tel. 28509801 / 28517451 / 32460637 Telefax. 28509802 / E- MAIL ganpetro@vsnl.com
A5: HDPE / PP / LLDPE PRICES EX-HALDIA PETROCHEMICALS LTD. PLANT FOR MAHARASTRA(khandesh)
A6: Bhivandi W.H. Add :- Godown No. 20,Thakkar Compound,Valgaon,Anjur Rd,Bhivandi,Dist. Thane. TEL:- 09324038864
A7: HDPE, LLDPE & PP PRICE W.E.F. DT. 18.07.2013
A8: GRADE | B8: BASIC | C8: LESS. | D8: LESS. | E8: ADD | F8: ADD CST | G8: CASH AMT
A9: HDPE | C9: C.D. | D9: LOC.SUB | E9: 0.1236 | F9: 0.02 | G9: PMT
A10: M 6007L / M 5005L | B10: 99550 | C10: 1000 | D10: 5550 | E10: =+(B10-C10-D10)*0.1236 -> 11494.8 | F10: =+(B10-C10-D10+E10)*0.02 -> 2089.896 | G10: =+B10-C10-D10+E10+F10 -> 106584.696 | I10: TRANS.CHARGES PMT.
A11: M 6007LU | B11: 101050 | C11: 1000 | D11: 5550 | E11: =+(B11-C11-D11)*0.1236 -> 11680.2 | F11: =+(B11-C11-D11+E11)*0.02 -> 2123.604 | G11: =+B11-C11-D11+E11+F11 -> 108303.804
A12: M 5002L | B12: 99050 | C12: 1000 | D12: 5550 | E12: 11433 | F12: 2078.66 | G12: 106011.66
A13: HD BM B 6401 | B13: 98500 | C13: 1000 | D13: 5550 | E13: 11365.02 | F13: 2066.3004 | G13: 105381.3204 | H13: LOCATIONS | I13: FREIGHT | J13: ADD S.T.
A14: HD BM E 5201 | B14: 100000 | C14: 1000 | D14: 5550 | E14: 11550.42 | F14: 2100.0084 | G14: 107100.4284 | H14: **T.D. | I14: RS/MT. | J14: 0.0309
A15: HD BM E5201S | B15: 99000 | C15: 1000 | D15: 5550 | E15: 11426.82 | F15: 2077.5364 | G15: 105954.3564
A16: MBM B 5500 | B16: 102200 | C16: 1000 | D16: 5300 | E16: 11853.24 | F16: 2155.0648 | G16: 109908.3048
A17: HM FILM F 5600/5400 | B17: 99450 | C17: 1000 | D17: 4750 | E17: 11581.32 | F17: 2105.6264 | G17: 107386.9464 | H17: AURANGABAD-4 | I17: 2802 | J17: =+I17*0.0309 -> 86.5818
A18: RAF/MFIL R5801 | B18: 101850 | C18: 1000 | D18: 5400 | E18: 11797.62 | F18: 2144.9524 | G18: 109392.5724
A19: RAF/MFIL HD T9 | B19: 98550 | C19: 1000 | D19: 5400 | E19: 11389.74 | F19: 2070.7948 | G19: 105610.5348 | H19: JALNA-4 | I19: 2833 | J19: =+I19*0.0309 -> 87.5397
A20: HD FILM HDT6 / F5001 | B20: 100350 | C20: 1000 | D20: 6100 | E20: 11525.7 | F20: 2095.514 | G20: 106871.214 | H20: JALGAON-4 | I20: 2583 | J20: =+I20*0.0309 -> 79.8147
A21: PIPE P5200UV | B21: 103250 | C21: 1000 | D21: 5750 | E21: 11927.4 | F21: 2168.548 | G21: 110595.948 | H21: LATUR-5 | I21: 2918 | J21: =+I21*0.0309 -> 90.1662
A22: IM M 5018L/M 5025L/M5818 | B22: 98400 | C22: 1000 | D22: 5550 | E22: 11352.66 | F22: 2064.0532 | G22: 105266.7132
A23: RAF HD T10 / HD T10S | B23: 99450 | C23: 1000 | D23: 5650 | E23: 11470.08 | F23: 2085.4016 | G23: 106355.4816 | H23: NANDED-4 | I23: 2982 | J23: =+I23*0.0309 -> 92.1438
A24: PIPE P 5300 | B24: 104700 | C24: 1000 | D24: 5850 | E24: 12094.26 | F24: 2198.8852 | G24: 112143.1452
A25: PIPE P5200(P.E-63) | B25: 101750 | C25: 1000 | D25: 5750 | E25: 11742 | F25: 2134.84 | G25: 108876.84 | H25: CHALISGAON | I25: 2624 | J25: =+I25*0.0309 -> 81.0816
A26: HD T9C | B26: 93900 | C26: 0 | D26: 2100 | E26: 11346.48 | F26: 2062.9296 | G26: 105209.4096
A27: OG | B27: 92900 | C27: 0 | D27: 2100 | E27: 11222.88 | F27: 2040.4576 | G27: 104063.3376
A28: PP
A29: FILM F 110 | B29: 103800 | C29: 1000 | D29: 4900 | E29: =+(B29-C29-D29)*0.1236 -> 12100.44 | F29: =+(B29-C29-D29+E29)*0.02 -> 2200.0088 | G29: =+B29-C29-D29+E29+F29 -> 112200.4488 | H29: *T.D.=TRANSIT DAYS
A30: HPIM M 103 | B30: 103600 | C30: 1000 | D30: 5700 | E30: 11976.84 | F30: 2177.5368 | G30: 111054.3768
A31: HPIM M 110 | B31: 102250 | C31: 1000 | D31: 3950 | E31: 12026.28 | F31: 2186.5256 | G31: 111512.8056
A32: TF T 103 / T 105N | B32: 104350 | C32: 1000 | D32: 4850 | E32: 12174.6 | F32: 2213.492 | G32: 112888.092
A33: RAFFIA R 103 | B33: 108150 | C33: 1000 | D33: 5700 | E33: 12539.22 | F33: 2279.7844 | G33: 116269.0044
A34: BOPP F 103 / F 103S | B34: 104550 | C34: 1000 | D34: 5150 | E34: 12162.24 | F34: 2211.2448 | G34: 112773.4848
A35: PP M 108/ M106 | B35: 102150 | C35: 1000 | D35: 4350 | E35: 11964.48 | F35: 2175.2896 | G35: 110939.7696
A36: PP F135 / E125 | B36: 104150 | C36: 1000 | D36: 5150 | E36: 12112.8 | F36: 2202.256 | G36: 112315.056
A37: PP HP OG | B37: 97250 | C37: 0 | D37: 0 | E37: 12020.1 | F37: 2185.402 | G37: 111455.502
A38: PP PS | B38: 93250 | C38: 0 | D38: 0 | E38: 11525.7 | F38: 2095.514 | G38: 106871.214
A39: PP WS | B39: 91250 | C39: 0 | D39: 0 | E39: 11278.5 | F39: 2050.57 | G39: 104579.07
A40: PP CP/RCP | E40: =(B40-C40-D40)*16% -> 0 | G40: =(B40-C40-D40)*16%+(B40-C40-D40) -> 0
A41: PPCP M 311T | B41: 109100 | C41: 1000 | D41: 6000 | E41: =+(B41-C41-D41)*0.1236 -> 12619.56 | F41: =+(B41-C41-D41+E41)*0.02 -> 2294.3912 | G41: =+B41-C41-D41+E41+F41 -> 117013.9512
A42: PPCP M 340 / M365 | B42: 106800 | C42: 1000 | D42: 5550 | E42: 12390.9 | F42: 2252.818 | G42: 114893.718
A43: PP CP M 310 | B43: 107500 | C43: 1000 | D43: 5450 | E43: 12489.78 | F43: 2270.7956 | G43: 115810.5756
A44: PP CP M 312 | B44: 105600 | C44: 1000 | D44: 5850 | E44: 12205.5 | F44: 2219.11 | G44: 113174.61
A45: PP CP M 304 / M 325 | B45: 105550 | C45: 1000 | D45: 5800 | E45: 12205.5 | F45: 2219.11 | G45: 113174.61
A46: PP CP M 307 / M 315 | B46: 105050 | C46: 1000 | D46: 5800 | E46: 12143.7 | F46: 2207.874 | G46: 112601.574
A47: PP RCP B 200 | B47: 105900 | C47: 1000 | D47: 5500 | E47: 12285.84 | F47: 2233.7168 | G47: 113919.5568
A48: PP RCP B202S | B48: 108900 | C48: 1000 | D48: 4900 | E48: 12730.8 | F48: 2314.616 | G48: 118045.416
A49: PP RCP M212S | B49: 107100 | C49: 1000 | D49: 5800 | E49: 12397.08 | F49: 2253.9416 | G49: 114951.0216
A50: LLDPE
A51: FILM 71601D | B51: 104450 | C51: 1000 | D51: 6350 | E51: =+(B51-C51-D51)*0.1236 -> 12001.56 | F51: =+(B51-C51-D51+E51)*0.02 -> 2182.0312 | G51: =+B51-C51-D51+E51+F51 -> 111283.5912
A52: FILM 71501S,71601W | B52: 103900 | C52: 1000 | D52: 6800 | E52: 11877.96 | F52: 2159.5592 | G52: 110137.5192
A53: FILM 71602 S / W | B53: 103900 | C53: 1000 | D53: 6800 | E53: 11877.96 | F53: 2159.5592 | G53: 110137.5192
A54: ROTO 73005 T/73204 T | B54: 103750 | C54: 1000 | D54: 5200 | E54: 12057.18 | F54: 2192.1436 | G54: 111799.3236
A55: ROTO 73005 TU | B55: 105250 | C55: 1000 | D55: 5200 | E55: 12242.58 | F55: 2225.8516 | G55: 113518.4316
A56: EC 72307 E | B56: 105950 | C56: 1000 | D56: 6050 | E56: 12224.04 | F56: 2222.4808 | G56: 113346.5208
A57: LLT - 12 | B57: 105450 | C57: 1000 | D57: 6050 | E57: =+(B57-C57-D57)*0.1236 -> 12162.24 | F57: 2211.2448 | G57: 112773.4848
A58: OG | B58: 99400 | C58: 0 | D58: 2250 | E58: 12007.74 | F58: 2183.1548 | G58: 111340.8948
A59: POST SALES QUANTITY DISCOUNT AS APPLICABLE
A60: QTY. MT FOR HD / LL | B60: >= 10 | C60: >=15 | D60: >=30 | E60: >=60 | F60: >= 100 | G60: >= 200 | H60: >= 400
A61: HDPE/LLDPE | B61: 300/- | C61: 300/- | D61: 400/- | E61: 450/- | F61: 550/- | G61: 650/- | H61: 750/-
A62: QTY. MT FOR PP | B62: >=15 | C62: >=30 | D62: >=60 | E62: >=100 | F62: >=200 | G62: >=400
A63: PP | B63: 300/- | C63: 400/- | D63: 450/- | E63: 550/- | F63: 650/- | G63: 750/-
A64: · FOR CREDIT PURCHASE INTREST FREE CREDIT WILL BE 14 DAYS FROM THE DATE OF INVOICE. AN EPI
A65: RS. 70 / MT PER DAY FOR EX-PLANT
A66: · Trade Discount of Rs. 4000 PMT applicable on R103 - to be adjusted pre-exice basis on Ex-plant sales only.
A67: · Trade Discount of Rs. 3000 PMT applicable on R5801 - to be adjusted pre-exice basis on Ex-plant sales only.
A68: · Trade Discount of Rs. 2000 PMT applicable on B5500 - to be adjusted pre-exice basis on Ex-plant sales only.
A69: · NON PRIME GRADE RS.800/MT LESS THAN THE BASIC PRIME GRADE.
A70: · CHEQUE RETURN PENALTY RS.1000/-PER INSTRUMENT.
A71: · UNLOADING & VARAI CHARGES TO BE BORNE BY THE CUSTOMER.
A72: · “C” FORM REQUIRED IN ADVANCE.
A73: · QUANTITY DISCOUNT WOULD NOT BE APPLICABLE ON COMBINATION OF HDPE AND LLDPE GRADES.
A74: · PRICE MAY CHANGE WITHOUT ANY PRIOR NOTICE. PRICE PREVAILING AT THE TIME OF DISPATCH WILL APPLY.
A75: REGARDS
A76: HITESH SHAH - 9820106078
A77: GIRISH SHAH - 9320949656

Sheet MAHA(SOUTH)
A1: GANPATI PETROCHEMICALS
A2: Consigment Stockist of : HALDIA PETROCHEMICALS LTD.
A3: 152,Sanjay Bldg. No. 6,Mittal Ind.Estate,Andheri Kurla Road,Marol,Andheri(East),MUMBAI-400 059.
A4: Tel. 28509801 / 28517451 / 32460637 Telefax. 28509802 / E- MAIL ganpetro@vsnl.com
A5: HDPE / PP / LLDPE PRICES EX-HALDIA PETROCHEMICALS LTD. PLANT FOR MAHARASTRA(SOUTH)
A6: Bhivandi W.H. Add :- Godown No. 20,Thakkar Compound,Valgaon,Anjur Rd,Bhivandi,Dist. Thane. TEL:- 09324038864
A7: HDPE, LLDPE & PP PRICE W.E.F. DT. 18.07.2013
A8: GRADE | B8: BASIC | C8: LESS. | D8: LESS. | E8: ADD | F8: ADD CST | G8: CASH AMT
A9: HDPE | C9: C.D. | D9: LOC.SUB | E9: 0.1236 | F9: 0.02 | G9: PMT
A10: M 6007L / M 5005L | B10: 99550 | C10: 1000 | D10: 6350 | E10: =+(B10-C10-D10)*0.1236 -> 11395.92 | F10: =+(B10-C10-D10+E10)*0.02 -> 2071.9184 | G10: =+B10-C10-D10+E10+F10 -> 105667.8384 | I10: TRANS.CHARGES PMT.
A11: M 6007LU | B11: 101050 | C11: 1000 | D11: 6350 | E11: =+(B11-C11-D11)*0.1236 -> 11581.32 | F11: =+(B11-C11-D11+E11)*0.02 -> 2105.6264 | G11: =+B11-C11-D11+E11+F11 -> 107386.9464
A12: M 5002L | B12: 99050 | C12: 1000 | D12: 6350 | E12: 11334.12 | F12: 2060.6824 | G12: 105094.8024
A13: HD BM B 6401 | B13: 98500 | C13: 1000 | D13: 6350 | E13: 11266.14 | F13: 2048.3228 | G13: 104464.4628 | H13: LOCATIONS | I13: FREIGHT | J13: ADD S.T.
A14: HD BM E 5201 | B14: 100000 | C14: 1000 | D14: 6350 | E14: 11451.54 | F14: 2082.0308 | G14: 106183.5708 | H14: **T.D. | I14: RS/MT. | J14: 0.0309
A15: HD BM E5201S | B15: 99000 | C15: 1000 | D15: 6350 | E15: 11327.94 | F15: 2059.5588 | G15: 105037.4988
A16: MBM B 5500 | B16: 102200 | C16: 1000 | D16: 6100 | E16: 11754.36 | F16: 2137.0872 | G16: 108991.4472
A17: HM FILM F 5600/5400 | B17: 99450 | C17: 1000 | D17: 5750 | E17: 11457.72 | F17: 2083.1544 | G17: 106240.8744 | H17: SANGLI - 6 | I17: 3143 | J17: =+I17*0.0309 -> 97.1187
A18: RAF/MFIL R5801 | B18: 101850 | C18: 1000 | D18: 6200 | E18: 11698.74 | F18: 2126.9748 | G18: 108475.7148 | H18: SATARA - 5 | I18: 3223 | J18: =+I18*0.0309 -> 99.5907
A19: RAF/MFIL HD T9 | B19: 98550 | C19: 1000 | D19: 6200 | E19: 11290.86 | F19: 2052.8172 | G19: 104693.6772 | H19: KOLHAPUR-6 | I19: 3154 | J19: =+I19*0.0309 -> 97.4586
A20: HD FILM HDT6 / F5001 | B20: 100350 | C20: 1000 | D20: 6800 | E20: 11439.18 | F20: 2079.7836 | G20: 106068.9636 | H20: RATNAGIRI - 6 | I20: 3709 | J20: =+I20*0.0309 -> 114.6081
A21: PIPE P5200UV | B21: 103250 | C21: 1000 | D21: 6600 | E21: 11822.34 | F21: 2149.4468 | G21: 109621.7868
A22: IM M 5018L/M 5025L/M5818 | B22: 98400 | C22: 1000 | D22: 6050 | E22: 11290.86 | F22: 2052.8172 | G22: 104693.6772 | H22: WAI | I22: 3227 | J22: =+I22*0.0309 -> 99.7143
A23: RAF HD T10 / HD T10S | B23: 99450 | C23: 1000 | D23: 6200 | E23: 11402.1 | F23: 2073.042 | G23: 105725.142 | H23: SOLAPUR - 6 | I23: 3050 | J23: =+I23*0.0309 -> 94.245
A24: PIPE P 5300 | B24: 104700 | C24: 1000 | D24: 6650 | E24: 11995.38 | F24: 2180.9076 | G24: 111226.2876
A25: PIPE P5200(P.E-63) | B25: 101750 | C25: 1000 | D25: 6600 | E25: 11636.94 | F25: 2115.7388 | G25: 107902.6788
A26: HD T9C | B26: 93900 | C26: 0 | D26: 2100 | E26: 11346.48 | F26: 2062.9296 | G26: 105209.4096
A27: OG | B27: 92900 | C27: 0 | D27: 2100 | E27: 11222.88 | F27: 2040.4576 | G27: 104063.3376
A28: PP
A29: FILM F 110 | B29: 103800 | C29: 1000 | D29: 6000 | E29: =+(B29-C29-D29)*0.1236 -> 11964.48 | F29: =+(B29-C29-D29+E29)*0.02 -> 2175.2896 | G29: =+B29-C29-D29+E29+F29 -> 110939.7696 | H29: *T.D.=TRANSIT DAYS
A30: HPIM M 103 | B30: 103600 | C30: 1000 | D30: 6850 | E30: 11834.7 | F30: 2151.694 | G30: 109736.394
A31: HPIM M 110 | B31: 102250 | C31: 1000 | D31: 5900 | E31: 11785.26 | F31: 2142.7052 | G31: 109277.9652
A32: TF T 103 / T 105N | B32: 104350 | C32: 1000 | D32: 6000 | E32: 12032.46 | F32: 2187.6492 | G32: 111570.1092
A33: RAFFIA R 103 | B33: 108150 | C33: 1000 | D33: 6850 | E33: 12397.08 | F33: 2253.9416 | G33: 114951.0216
A34: BOPP F 103 / F 103S | B34: 104550 | C34: 1000 | D34: 6250 | E34: 12026.28 | F34: 2186.5256 | G34: 111512.8056
A35: PP M 108/ M106 | B35: 102150 | C35: 1000 | D35: 6300 | E35: 11723.46 | F35: 2131.4692 | G35: 108704.9292
A36: PP F135 / E125 | B36: 104150 | C36: 1000 | D36: 6300 | E36: 11970.66 | F36: 2176.4132 | G36: 110997.0732
A37: PP HP OG | B37: 97250 | C37: 0 | D37: 0 | E37: 12020.1 | F37: 2185.402 | G37: 111455.502
A38: PP PS | B38: 93250 | C38: 0 | D38: 0 | E38: 11525.7 | F38: 2095.514 | G38: 106871.214
A39: PP WS | B39: 91250 | C39: 0 | D39: 0 | E39: 11278.5 | F39: 2050.57 | G39: 104579.07
A40: PP CP/RCP
A41: PPCP M 311T | B41: 109100 | C41: 1000 | D41: 7150 | E41: =+(B41-C41-D41)*0.1236 -> 12477.42 | F41: =+(B41-C41-D41+E41)*0.02 -> 2268.5484 | G41: =+B41-C41-D41+E41+F41 -> 115695.9684
A42: PPCP M 340 / M365 | B42: 106800 | C42: 1000 | D42: 6650 | E42: 12254.94 | F42: 2228.0988 | G42: 113633.0388
A43: PP CP M 310 | B43: 107500 | C43: 1000 | D43: 6550 | E43: 12353.82 | F43: 2246.0764 | G43: 114549.8964
A44: PP CP M 312 | B44: 105600 | C44: 1000 | D44: 7000 | E44: 12063.36 | F44: 2193.2672 | G44: 111856.6272
A45: PP CP M 304 / M 325 | B45: 105550 | C45: 1000 | D45: 6950 | E45: 12063.36 | F45: 2193.2672 | G45: 111856.6272
A46: PP CP M 307 / M 315 | B46: 105050 | C46: 1000 | D46: 6950 | E46: 12001.56 | F46: 2182.0312 | G46: 111283.5912
A47: PP RCP B 200 | B47: 105900 | C47: 1000 | D47: 6600 | E47: 12149.88 | F47: 2208.9976 | G47: 112658.8776
A48: PP RCP B202S | B48: 108900 | C48: 1000 | D48: 6000 | E48: 12594.84 | F48: 2289.8968 | G48: 116784.7368
A49: PP RCP M212S | B49: 107100 | C49: 1000 | D49: 6950 | E49: 12254.94 | F49: 2228.0988 | G49: 113633.0388
A50: LLDPE
A51: FILM 71601D | B51: 104450 | C51: 1000 | D51: 7000 | E51: =+(B51-C51-D51)*0.1236 -> 11921.22 | F51: =+(B51-C51-D51+E51)*0.02 -> 2167.4244 | G51: =+B51-C51-D51+E51+F51 -> 110538.6444
A52: FILM 71501S,71601W | B52: 103900 | C52: 1000 | D52: 7450 | E52: 11797.62 | F52: 2144.9524 | G52: 109392.5724
A53: FILM 71602 S / W | B53: 103900 | C53: 1000 | D53: 7450 | E53: 11797.62 | F53: 2144.9524 | G53: 109392.5724
A54: ROTO 73005 T/73204 T | B54: 103750 | C54: 1000 | D54: 5800 | E54: 11983.02 | F54: 2178.6604 | G54: 111111.6804
A55: ROTO 73005 TU | B55: 105250 | C55: 1000 | D55: 5800 | E55: 12168.42 | F55: 2212.3684 | G55: 112830.7884
A56: EC 72307 E | B56: 105950 | C56: 1000 | D56: 6850 | E56: 12125.16 | F56: 2204.5032 | G56: 112429.6632
A57: LLT - 12 | B57: 105450 | C57: 1000 | D57: 6850 | E57: =+(B57-C57-D57)*0.1236 -> 12063.36 | F57: 2193.2672 | G57: 111856.6272
A58: OG | B58: 99400 | C58: 0 | D58: 2250 | E58: 12007.74 | F58: 2183.1548 | G58: 111340.8948
A59: POST SALES QUANTITY DISCOUNT AS APPLICABLE
A60: QTY. MT FOR HD / LL | B60: >= 10 | C60: >=15 | D60: >=30 | E60: >=60 | F60: >= 100 | G60: >= 200 | H60: >= 400
A61: HDPE/LLDPE | B61: 300/- | C61: 300/- | D61: 400/- | E61: 450/- | F61: 550/- | G61: 650/- | H61: 750/-
A62: QTY. MT FOR PP | B62: >=15 | C62: >=30 | D62: >=60 | E62: >=100 | F62: >=200 | G62: >=400
A63: PP | B63: 300/- | C63: 400/- | D63: 450/- | E63: 550/- | F63: 650/- | G63: 750/-
A64: · FOR CREDIT PURCHASE INTREST FREE CREDIT WILL BE 14 DAYS FROM THE DATE OF INVOICE. AN EPI
A65: RS. 70 / MT PER DAY FOR EX-PLANT
A66: · Trade Discount of Rs. 4000 PMT applicable on R103 - to be adjusted pre-exice basis on Ex-plant sales only.
A67: · Trade Discount of Rs. 3000 PMT applicable on R5801 - to be adjusted pre-exice basis on Ex-plant sales only.
A68: · Trade Discount of Rs. 2000 PMT applicable on B5500 - to be adjusted pre-exice basis on Ex-plant sales only.
A69: · NON PRIME GRADE RS.800/MT LESS THAN THE BASIC PRIME GRADE.
A70: · CHEQUE RETURN PENALTY RS.1000/-PER INSTRUMENT.
A71: · UNLOADING & VARAI CHARGES TO BE BORNE BY THE CUSTOMER.
A72: · “C” FORM REQUIRED IN ADVANCE.
A73: · QUANTITY DISCOUNT WOULD NOT BE APPLICABLE ON COMBINATION OF HDPE AND LLDPE GRADES.
A74: · PRICE MAY CHANGE WITHOUT ANY PRIOR NOTICE. PRICE PREVAILING AT THE TIME OF DISPATCH WILL APPLY.
A75: REGARDS
A76: HITESH SHAH - 9820106078
A77: GIRISH SHAH - 9320949656

Sheet STOCK POINT
A1: GANPATI PETROCHEMICALS
A2: Consigment Stockist of : HALDIA PETROCHEMICALS LTD.
A3: 152,Sanjay Bldg. No. 6,Mittal Ind.Estate,Andheri Kurla Road,Marol,Andheri(East),MUMBAI-400 059.
A4: Tel. 28509801 / 28517451 Telefax. 28509802 E- MAIL ganpetro@vsnl.com
A5: Bhivandi W.H. Add :- Godown No. 20,Thakkar Compound,Valgaon,Anjur Rd,Bhivandi,Dist. Thane.
A6: Tel :- 02522-271056 , 09324038864, 09967898962
A7: Daman W.H.Add. :- House No. DGGP/10-B, Survey No. 747 & 748, Village Kalaria, Nani Daman,
A8: Daman - 396 210. Tel :- 0260 - 2240086, Mobile - 09377319643
A9: STOCK POINT HD, LL & PP CREDIT PRICE W.E.F. DT. 18.07.2013
C10: BHIVANDI | D10: DAMAN / SILVASSA
B11: HDPE
B12: IM M 6007L / M 5005L | C12: 110217 | D12: 110305
B13: M 5002 L | C13: 109655 | D13: 109743
B14: M5018 L / M 5025L / M5818 | C14: 108260 | D14: 108639
B15: HD BM B 6401 | C15: 108953 | D15: 109042
B16: HD BM/FILM E 5201S | C16: 109515 | D16: 109604
B17: HD BM/FILM E 5201 | C17: 110677 | D17: 110765
B18: HD T10 | C18: 109348 | D18: 110420
B19: HM B 5500 | C19: 111302 | D19: 111390
B20: HM FILM F 5600/5400 | C20: 110208 | D20: 110305
B21: MFIL/RAF R5801 | C21: 109661 | D21: 109749
B22: RAF / HD T 9 / R 6001L | C22: 108489 | D22: 109329
B23: HD T 6 / F 5001 | C23: 109807 | D23: 110190
B24: P5200 ( P.E. - 63 ) | C24: 112515 | D24: 112603
B25: PIPE P 5300 | C25: 115732 | D25: 115877
B26: PIPE P5200UV | C26: 114200 | D26: 114288
B27: PP
B28: FILM F 110 | C28: 115690 | D28: 115870
B29: HPIM M 110 | C29: 114250 | D29: 114400
B30: HPIM M 103 | C30: 114820 | D30: 114910
B31: RAFFIA R 103 | C31: 115340 | D31: 115540
B32: HPIM M108 / M106 | C32: 113680 | D32: 113820
B33: HP PP F135 / E125 | C33: 115970 | D33: 116810
B34: PP F103 | C34: 116490 | D34: 116580
B35: PP CP/RCP
B36: PP CP M 340 / M365 | C36: 118620 | D36: 118700
B37: PP CP M 312 | C37: 116830 | D37: 116920
B38: PP CP M 304 / M 325 | C38: 116830 | D38: 116980
B39: PP CP M 307 / M 315 | C39: 116260 | D39: 116410
B40: PP RCP B 200 | C40: 117640 | D40: 118470
B41: TF T 103 / T 105N | C41: 116550 | D41: 117150
B42: PP CP M 310 | C42: 119530 | D42: 119620
B43: PP RCP M212S | C43: 118620 | D43: 118700
B44: B202S | C44: 121770 | D44: 121920
B45: LLDPE
B46: FILM 71601D | C46: 114788 | D46: 114991
B47: FILM 71601W / 71602 S/W | C47: 113664 | D47: 113867
B48: ROTO 73005 T / 73204 T | C48: 115329 | D48: 115532
B49: ROTO 73005 TU / 73204 TU | C49: 117014 | D49: 117217
B50: FILM 71501 S | C50: 113664 | D50: 113867
B51: EC 72307 E | C51: 116938 | D51: 117026
B52: LLT-12 | C52: 116376 | D52: 116464
A53: The above prices are Credit Prices & are inclusive of Excise Duty @ 12.36 %.
A54: Local VAT Tax and other duties and levies applicable at prevailing rate.
A55: Transportation Charges from our Warehouse in Customers Account.
A56: Cash disc. For Ex-stock sales will be Rs. 1000/- per MT on HDPE, LLDPE, PP & PPCP
A57: Non Prime Grade Rs. 900/MT less than the Prime Grade
A58: on post-ED basis for cash customer.
A59: PRICE MAY CHANGE WITHOUT ANY PRIOR NOTICE. PRICE PREVAILING AT THE TIME OF DISPATCH WILL APPLY.
A60: REGARDS
A61: HITESH SHAH - 9820106078
A62: GIRISH SHAH - 9320949656

Sheet Sheet1
